Workbook

Sheet Page 1
B15: Report Date: | E15: 2018-01-31
B16: Reporting Period: | E16: =TEXT(EOMONTH(E15,-1)+1,"dd-mmmm-yy")&" to "&TEXT(E15,"dd-mmmm-yy") -> 01-January-18 to 31-January-18
B17: Trustee Distribution Date: | E17: =WORKDAY(EOMONTH(E15,-1),6) -> 2018-01-08
B18: Issuer Distribution Date: | E18: 2018-01-16
B21: Investors (or other appropriate third parties) can register at https://boeportal.co.uk/santanderuk (Internet Explorer version 8 or higher required) to download further disclosures in accordance with the Bank of England Market Notice Detailed eligibility requirements for residential mortgage backed securities and covered bonds backed by residential mortgages dated 30th November 2010.
B23: DISCLAIMER: The following document has been prepared by Santander UK. The document is provided to you for information purposes only. The document is not intended as an offer or solicitation for the purchase or sale of any financial instrument. Whilst every effort has been taken to ensure that the document is accurate, current, complete, fit for its intended purpose and compliant with the relevant United Kingdom legislation and regulations as at the date of issue, Santander UK does not warrant that this document is accurate, current, complete, fit for its intended purpose and compliant with the relevant United Kingdom legislation and regulations as errors might occur due to circumstances which are beyond our control. In particular, Santander UK does not warrant that any market data or prices are complete or accurate. Any opinions or estimates expressed in the documents may be subject to change without notice and Santander UK is under no obligation to update the opinions or estimates and neither Santander UK nor any of its affiliates accepts any liability whatsoever for any direct or consequential loss arising from any use of this document or its contents. Please remember that past performance is not necessarily a guide for future performance. The value of instruments and the income from them can go down as well as up.
B28: Contacts:
B30: All queries should be directed to:
B33: Medium Term Funding Team | C33: 0207 756 7107 | D33: MTF@santander.co.uk

Sheet Page 2
B1: MAIN PARTIES TO THE STRUCTURE, RATINGS AND TRIGGERS (IF APPLICABLE)
B3: Role | C3: Counterparty | D3: Fitch/Moody's/S&P Long Term Rating | E3: Fitch/Moody's/S&P Short Term Rating | F3: Applicable Trigger (loss of) | G3: Consequence
B4: Issuer | C4: Holmes Master Issuer
B5: Funding | C5: Holmes Funding Limited
B6: Mortgages Trustee | C6: Holmes Trustees Limited
B7: Seller | C7: Santander UK | D7: A / Aa3 / A | E7: F1 / P-1 / A-1 | F7: A3 (Moody's) | G7: Funding required to establish a liquidity reserve fund.
F8: BBB / Baa2 / BBB | G8: Seller to submit to the Mortgages Trustee, Funding, the Security Trustee and the Rating Agencies draft letters of notice to the Borrowers of sale and purchase of Loans.
F9: BBB- / Baa3 / BBB- | G9: Completion of legal assignment of Loans to the Mortgages Trustee.
F10: F2 / P-2 / A-3 | G10: New Loans may not be assigned to the Mortgages Trustee.
F11: F2 / P-2 / A-2 | G11: Funding may not offer payments to the Seller to acquire an increased interest in the Trust Property.
F12: A3 (Moody's) | G12: Independent auditors need to be appointed to determine whether a random selection of Loans and their Related Security constituting the Trust Property complied with the representations and warranties at the date of assignment.
F13: F1 (Fitch) / A-1 (S&P) | G13: Quarterly (instead of annual) review of the calculation components of the Minimum Seller Share.
F14: Baa3 (Moody's) | G14: Adjustment to Minimum Seller Share.
B15: Servicer | C15: Santander UK | D15: A / Aa3 / A | E15: F1 / P-1 / A-1 | F15: F1 / P-1 / A-1 | G15: The title deeds and the customer files relating to the Loans in the Portfolio to be segregated from the title deeds and customer files of other properties and mortgages of the Seller which do not form part of the Portfolio.
B16: Cash Manager | C16: Santander UK | D16: A / Aa3 / A | E16: F1 / P-1 / A-1
B17: Each Start-up Loan Provider | C17: Santander UK | D17: A / Aa3 / A | E17: F1 / P-1 / A-1
B18: Funding Account Bank A | C18: Bank of New York Mellon | D18: AA+ / Aa1 / AA- | E18: F1+ / P-1 / A-1+ | F18: A or F1 / P-1 / A or A-1 (or A+ if no ST rating) | G18: Termination of role and transfer of Funding Transaction Account to a financial institution having the required ratings, unless within 30 calendar days: (a) a guarantee of the Account Bank A’s obligations is obtained from a financial institution having the required ratings; or (b) such other actions required by the Rating Agencies are taken to ensure that the ratings assigned to the outstanding Rated Notes are not adversely affected.
B19: Funding Account Bank B | C19: Santander UK | D19: A / Aa3 / A | E19: F1 / P-1 / A-1
F20: A or F1 / P-1 / A or A-1 (or A+ if no ST rating) | G20: Termination of role and transfer of Funding GIC Account to a financial institution having the required ratings, unless within 30 calendar days: (a) a guarantee of the Account Bank B’s obligations is obtained from a financial institution having the required ratings; or (b) such other actions required by the Rating Agencies are taken to ensure that the ratings assigned to the outstanding Rated Notes are not adversely affected. If certain conditions are met pursuant to the Panel Bank Guidelines (see Schedule 5 to the Cash Management Agreement) a limited amount of cash may be kept with Santander UK as an Eligible Bank when it is rated below A or F1 / P-1 / A or A-, but no lower than F2 and BBB+ / P-2 / A-2 and BBB+.
B21: Mortgage Trust Account Bank | C21: Santander UK | D21: A / Aa3 / A | E21: F1 / P-1 / A-1 | F21: BBB+ or F2 / P-2 / BBB+ or A-2 | G21: Termination of role and transfer of Mortgages Trustee GIC Account to a financial institution rated A and F1 / P-1 / A and A-1 (or A+ if no ST rating), unless within 30 calendar days: (a) the rights and obligations in respect of the provision of the Mortgages Trustee GIC Account are transferred to a financial institution rated A and F1 / P-1 / A and A-1 (or A+ if no ST rating); or (b) a guarantee from a financial institution rated A and F1 / P-1 / A and A-1 (or A+ if no ST rating) is obtained; or (c) such other action required by the Rating Agencies is taken to ensure that the ratings assigned to the outstanding Rated Notes are not adversely affected, and for each of the remedial actions above, a confirmation from the Ratings Agencies that the outstanding Rated Notes will not be downgraded is also required.
F22: A or F1 / P-1 / A or A-1 (or A+ if no ST rating) | G22: Termination of role and transfer of Mortgages Trustee GIC Account to a financial institution rated A and F1 / P-1 / A and A-1 (or A+ if no ST rating), unless within 60 London Business Days: (a) a stand-by arrangement is put in place in respect of the Mortgages Trustee GIC Account with a financial institution rated A and F1 / P-1 / A and A-1 (or A+ if no ST rating); or (b) such other action required by the Rating Agencies is taken to ensure that the ratings assigned to the outstanding Rated Notes are not adversely affected, and for each of the remedial actions above, a confirmation from the Rating Agencies that the outstanding Rated Notes will not be downgraded is also required.
F23: A or A-1 (or A+ if no ST rating) (S&P) | G23: Termination of role and transfer of Mortgages Trustee GIC Account to a financial institution rated A and F1 / P-1 / A and A-1 (or A+ if no ST rating), unless within 60 London Business Days: (a) the Excess Amount (being the amount by which the monies collected by the Servicer in respect of the Loans and standing to the credit of the Mortgages Trustee GIC Account exceed 5% of the Funding Share) is transferred to a financial institution rated A and A-1 (or A+ if no ST rating) by S&P; or (b) such other action required by the Rating Agencies is taken to ensure that the ratings assigned to the outstanding Rated Notes are not adversely affected, and for each of the remedial actions above, a confirmation from the Rating Agencies that the outstanding Rated Notes will not be downgraded is also required.
B24: Issuer Account Bank | C24: Santander UK | D24: A / Aa3 / A | E24: F1 / P-1 / A-1 | F24: F1 / P-1 / A or A-1 (or A+ if no ST rating) | G24: Termination of Issuer Bank Account Agreement and closure of account, unless within 30 calendar days: (a) the relevant Master Issuer Transaction Account and rights and obligations of the Issuer Account Bank are transferred to a financial institution rated A and F1 / P-1 / A and A-1 (or A+ if no ST rating); (b) a guarantee of the Issuer Account Bank’s obligations is obtained from a financial institution having the above ratings; or (c) such other actions are taken to ensure that the ratings assigned to the outstanding issuing entity rated notes are not adversely affected, and for each of the remedial actions above, a confirmation from the Ratings Agencies that the outstanding Rated Notes will not be downgraded is also required.
B25: Funding Swap Provider | C25: Santander UK | D25: A / Aa3 / A | E25: F1 / P-1 / A-1 | F25: A or F1 / A2 or P-1 (or A1 if no ST rating) / A or A-1 (A+ if not ST rating) | G25: Remedial action required including posting collateral with possibility of obtaining guarantee, transferring to eligible transferee or taking such other action as will result in the rating of the relevant Notes being maintained at the same level.
F26: BBB- or F3 / A3 or P-2 (A3 if no ST rating) / BBB+ | G26: Further remedial action required including posting/continuing to post collateral with the possibility of obtaining a guarantee, transferring to eligible transferee or taking such other action as will result in the rating of the relevant Notes being maintained at the same level.
B27: Issuer Swap Provider | C27: Abbey National Treasury Services plc. | D27: A / Aa3 / A | E27: F1 / P-1 / A-1 | F27: A or F1 / A2 or P-1 (or A1 if no ST rating) / A or A-1 (A+ if no ST rating) | G27: Remedial action required as above.
F28: BBB- or F3 / A3 or P-2 (A3 if no ST rating) / BBB+ | G28: Further remedial action required as above.
B29: Paying Agent and related roles | C29: Bank of New York Mellon | D29: AA+ / Aa1 / AA- | E29: F1+ / P-1 / A-1+
B30: Corporate Services Provider | C30: Wilmington Trust SP Services (London) Limited
B31: Note Trustee and Security Trustee | C31: Bank of New York Mellon
B32: The table above is a brief overview only. For a more detailed summary, please consult pages 60 to 68 (Rating Triggers Table) of the base prospectus. Investors are also advised to consult the underlying Transaction Documents to understand the precise legal terms and conditions associated with the roles listed above and the rating triggers summarised above.

Sheet Page 3
B2: COLLATERAL REPORT
B4: Mortgage Loan Profile | J4: Trust Assets
B6: Original number of Mortgage Loans in Pool | F6: 115191 | J6: ="Current value of Mortgage Loans in Pool at"&" "&TEXT(EOMONTH('Page 1'!E15,-1)+1,"dd mmmm yyyy") -> Current value of Mortgage Loans in Pool at 01 January 2018 | N6: =HLOOKUP(EOMONTH('Page 1'!E15,-1),'[3]Waterfall - Trustees'!$I$5:$DC$41,37,FALSE) -> 4299333067
B7: Original current value of Mortgage Loans in Pool | F7: 6399214138 | J7: ="Last months Closing Trust Assets at"&" "&TEXT(EOMONTH('Page 1'!E15,-2)+1,"dd mmmm yyyy") -> Last months Closing Trust Assets at 01 December 2017 | N7: =HLOOKUP(EOMONTH('Page 1'!E15,-2),'[3]Waterfall - Trustees'!$I$5:$DC$41,37,FALSE) -> 4384489320
B8: ="Current number of Mortgage Loans in Pool at"&" "&TEXT('Page 1'!E15,"dd-mmmm-yyyy") -> Current number of Mortgage Loans in Pool at 31-January-2018 | F8: =D39 -> 91387 | J8: ="Mortgage collections - Interest on"&" "&TEXT(EOMONTH('Page 1'!E15,-1)+1,"dd mmmmyyyy") -> Mortgage collections - Interest on 01 January2018 | N8: =HLOOKUP(EOMONTH('Page 1'!E15,-1),'[3]Waterfall - Trustees'!$I$5:$DC$1048576,166,FALSE) -> 9807678.2
B9: ="Current £ value of Mortgage Loans in Pool at"&" "&TEXT('Page 1'!E15,"dd-mmmm-yyyy") -> Current £ value of Mortgage Loans in Pool at 31-January-2018 | F9: =E39 -> 4435346116 | J9: ="Mortgage collections - Principal (Scheduled) on"&" "&TEXT(EOMONTH('Page 1'!E15,-1)+1,"dd mmmm yyyy") -> Mortgage collections - Principal (Scheduled) on 01 January 2018 | N9: =+INDEX('[3]Waterfall - Trustees'!$263:$263,MATCH(EOMONTH('Page 1'!E17,-1),'[3]Waterfall - Trustees'!$5:$5,0)) -> 31365130.26
B10: ="Weighted Average Yield on"&" "&TEXT('Page 1'!E17,"dd-mmmm-yyyy") -> Weighted Average Yield on 08-January-2018 | F10: =INDEX('[3]Waterfall - Trustees'!$257:$257,MATCH(EOMONTH('Page 1'!E15,-1),'[3]Waterfall - Trustees'!$5:$5,0)) -> 0.02717555987 | J10: ="Mortgage collections - Principal (Unscheduled) on"&" "&TEXT(EOMONTH('Page 1'!E15,-1)+1,"dd mmmm yyyy") -> Mortgage collections - Principal (Unscheduled) on 01 January 2018 | N10: =+('Page 8'!C21+'Page 8'!C24)-'Page 3'!N9 -> 53828667.45
J11: ="Principal Ledger as calculated on"&" "&TEXT('Page 1'!E17,"dd mmmm yyyy") -> Principal Ledger as calculated on 08 January 2018 | N11: =+INDEX('[3]Waterfall - Funding'!$130:$130,MATCH(EOMONTH('Page 1'!E15,-1)+1,'[3]Waterfall - Funding'!$15:$15,0))+INDEX('[3]Waterfall - Funding'!$131:$131,MATCH(EOMONTH('Page 1'!E15,-1)+1,'[3]Waterfall - Funding'!$15:$15,0))+INDEX('[3]Waterfall - Funding'!$132:$132,MATCH(EOMONTH('Page 1'!E15,-1)+1,'[3]Waterfall - Funding'!$15:$15,0)) -> 0
J12: ="Funding Share as calculated on"&" "&TEXT(EOMONTH('Page 1'!E15,-1),"dd mmmm yyyy") -> Funding Share as calculated on 31 December 2017 | N12: =INDEX('[3]Waterfall - Trustees'!$A:$BZ, MATCH("Funding Share IR",'[3]Waterfall - Trustees'!$C:$C,0), MATCH(EOMONTH('Page 1'!$E$15,-1),'[3]Waterfall - Trustees'!$5:$5,0)) -> 1702243164
J13: ="Funding Share % as calculated on"&" "&TEXT(EOMONTH('Page 1'!E15,-1),"dd mmmm yyyy") -> Funding Share % as calculated on 31 December 2017 | N13: =INDEX('[3]Waterfall - Trustees'!$A:$BZ, MATCH("Funding Share %",'[3]Waterfall - Trustees'!$C:$C,0), MATCH(EOMONTH('Page 1'!$E$15,-1),'[3]Waterfall - Trustees'!$5:$5,0)) -> 0.3882421
J14: ="Seller Share as calculated on"&" "&TEXT(EOMONTH('Page 1'!E15,-1),"dd mmmm yyyy") -> Seller Share as calculated on 31 December 2017 | N14: =INDEX('[3]Waterfall - Trustees'!$A:$BZ, MATCH("Seller Share IR",'[3]Waterfall - Trustees'!$C:$C,0), MATCH(EOMONTH('Page 1'!$E$15,-1),'[3]Waterfall - Trustees'!$5:$5,0)) -> 2682246156
J15: ="Seller Share % as calculated on"&" "&TEXT(EOMONTH('Page 1'!E15,-1),"dd mmmm yyyy") -> Seller Share % as calculated on 31 December 2017 | N15: =INDEX('[3]Waterfall - Trustees'!$A:$BZ, MATCH("Seller Share %",'[3]Waterfall - Trustees'!$C:$C,0), MATCH(EOMONTH('Page 1'!$E$15,-1),'[3]Waterfall - Trustees'!$5:$5,0)) -> 0.6117579
J16: ="Minimum Seller Share (Amount)"&" "&TEXT(EOMONTH('Page 1'!E15,-1),"dd mmmm yyyy") -> Minimum Seller Share (Amount) 31 December 2017
J17: W | N17: =INDEX('[3]Waterfall - Trustees'!$A:$BZ, MATCH("Savings Accounts",'[3]Waterfall - Trustees'!$C:$C,0), MATCH(EOMONTH('Page 1'!$E$15,-1),'[3]Waterfall - Trustees'!$5:$5,0)) -> 225452494.9
J18: X | N18: =INDEX('[3]Waterfall - Trustees'!$A:$BZ, MATCH("4.4% of Trust property",'[3]Waterfall - Trustees'!$C:$C,0), MATCH(EOMONTH('Page 1'!$E$15,-1),'[3]Waterfall - Trustees'!$5:$5,0)) -> 189170512
J19: Y | N19: =INDEX('[3]Waterfall - Trustees'!$A:$BZ, MATCH("product of p,q and r",'[3]Waterfall - Trustees'!$C:$C,0), MATCH(EOMONTH('Page 1'!$E$15,-1),'[3]Waterfall - Trustees'!$5:$5,0)) -> 196918565
J20: Z | N20: =INDEX('[3]Waterfall - Trustees'!$A:$BZ, MATCH("Reductions",'[3]Waterfall - Trustees'!$C:$C,0), MATCH(EOMONTH('Page 1'!$E$15,-1),'[3]Waterfall - Trustees'!$5:$5,0)) -> 0
J21: AA | N21: =INDEX('[3]Waterfall - Trustees'!$A:$BZ, MATCH("Cashbacks",'[3]Waterfall - Trustees'!$C:$C,0), MATCH(EOMONTH('Page 1'!$E$15,-1),'[3]Waterfall - Trustees'!$5:$5,0)) -> 49854.39
J22: W + X + Y + Z + AA = | N22: =+SUM(N17:N21) -> 611591426.3
J23: ="Minimum Seller Share (% of Total) on"&" "&TEXT(EOMONTH('Page 1'!E15,-1)+1,"dd mmmm yyyy") -> Minimum Seller Share (% of Total) on 01 January 2018 | N23: =INDEX('[3]Waterfall - Trustees'!$A:$BZ, MATCH("Minimum Seller Share %",'[3]Waterfall - Trustees'!$C:$C,0), MATCH(EOMONTH('Page 1'!$E$15,-1),'[3]Waterfall - Trustees'!$5:$5,0)) -> 0.1422527353
B25: ="Arrears Analysis of Non Repossessed Mortgage Loans at"&" "&TEXT('Page 1'!E15,"dd mmmm yyyy") -> Arrears Analysis of Non Repossessed Mortgage Loans at 31 January 2018 | D25: Number | E25: Current Balance £ | F25: Arrears £ | G25: By Number % | H25: By Current Balance %
B26: <1 month in arrears | D26: ='[3]Trustee Assets NEW'!E1588 -> 89713 | E26: ='[3]Trustee Assets NEW'!E1628 -> 4321086769 | F26: =+'[3]Trustee Assets NEW'!E2213 -> 0 | G26: =(D26/$D$39)*100 -> 98.16822962 | H26: =(E26/$E$39)*100 -> 97.42389108
B27: ≥1 – <2 months in arrears | D27: ='[3]Trustee Assets NEW'!E1589 -> 1460 | E27: ='[3]Trustee Assets NEW'!E1629 -> 99868329.66 | F27: =+'[3]Trustee Assets NEW'!E2214 -> 276329.13 | G27: =(D27/$D$39)*100 -> 1.597601409 | H27: =(E27/$E$39)*100 -> 2.251646817
B28: ≥2 – <3 months in arrears | D28: ='[3]Trustee Assets NEW'!E1590 -> 173 | E28: ='[3]Trustee Assets NEW'!E1630 -> 11910824.13 | F28: =+'[3]Trustee Assets NEW'!E2215 -> 121022.18 | G28: 0.1893048245 | H28: 0.2685432843
B29: ≥3 – <4 months in arrears | D29: ='[3]Trustee Assets NEW'!E1591 -> 41 | E29: ='[3]Trustee Assets NEW'!E1631 -> 2480192.95 | F29: =+'[3]Trustee Assets NEW'!E2216 -> 39239.11 | G29: 0.04486414917 | H29: 0.05591881412
B30: ≥4 – <5 months in arrears | D30: ='[3]Trustee Assets NEW'!E1592 -> 0 | E30: ='[3]Trustee Assets NEW'!E1632 -> 0 | F30: =+'[3]Trustee Assets NEW'!E2217 -> 0 | G30: 0 | H30: 0
B31: ≥5 – <6 months in arrears | D31: ='[3]Trustee Assets NEW'!E1593 -> 0 | E31: ='[3]Trustee Assets NEW'!E1633 -> 0 | F31: =+'[3]Trustee Assets NEW'!E2218 -> 0 | G31: 0 | H31: 0
B32: ≥6 – <7 months in arrears | D32: ='[3]Trustee Assets NEW'!E1594 -> 0 | E32: ='[3]Trustee Assets NEW'!E1634 -> 0 | F32: =+'[3]Trustee Assets NEW'!E2219 -> 0 | G32: 0 | H32: 0
B33: ≥7 – <8 months in arrears | D33: ='[3]Trustee Assets NEW'!E1595 -> 0 | E33: ='[3]Trustee Assets NEW'!E1635 -> 0 | F33: =+'[3]Trustee Assets NEW'!E2220 -> 0 | G33: 0 | H33: 0
B34: ≥8 – <9 months in arrears | D34: ='[3]Trustee Assets NEW'!E1596 -> 0 | E34: ='[3]Trustee Assets NEW'!E1636 -> 0 | F34: =+'[3]Trustee Assets NEW'!E2221 -> 0 | G34: 0 | H34: 0
B35: ≥9 – <10 months in arrears | D35: ='[3]Trustee Assets NEW'!E1597 -> 0 | E35: ='[3]Trustee Assets NEW'!E1637 -> 0 | F35: =+'[3]Trustee Assets NEW'!E2222 -> 0 | G35: 0 | H35: 0
B36: ≥10 – <11 months in arrears | D36: ='[3]Trustee Assets NEW'!E1598 -> 0 | E36: ='[3]Trustee Assets NEW'!E1638 -> 0 | F36: =+'[3]Trustee Assets NEW'!E2223 -> 0 | G36: 0 | H36: 0
B37: ≥11 – <12 months in arrears | D37: ='[3]Trustee Assets NEW'!E1599 -> 0 | E37: ='[3]Trustee Assets NEW'!E1639 -> 0 | F37: =+'[3]Trustee Assets NEW'!E2224 -> 0 | G37: 0 | H37: 0
B38: More than 12 months in arrears | D38: ='[3]Trustee Assets NEW'!E1600+'[3]Trustee Assets NEW'!$E$1601 -> 0 | E38: ='[3]Trustee Assets NEW'!E1640+'[3]Trustee Assets NEW'!$E$1641 -> 0 | F38: =+'[3]Trustee Assets NEW'!E2225 -> 0 | G38: 0 | H38: 0
B39: Total | D39: =SUM(D26:D38) -> 91387 | E39: =SUM(E26:E38) -> 4435346116 | F39: =SUM(F26:F38) -> 436590.42 | G39: =SUM(G26:G38) -> 100 | H39: =SUM(H26:H38) -> 100
B42: ="Arrears Capitalised at"&" "&TEXT('Page 1'!E15,"dd mmmm yyyy") -> Arrears Capitalised at 31 January 2018 | D42: Number | E42: Current Balance | F42: Capitalised Amount
E43: £ | F43: £
B45: Capitalisation cases (in month) | D45: ='[3]Trustee Assets NEW'!$E$2130 -> 1 | E45: ='[3]Trustee Assets NEW'!$E$2131 -> 50080.63 | F45: ='[3]Trustee Assets NEW'!$E$2132 -> 1388.41
B46: Capitalisation cases (cumulative) * | D46: ='[3]Trustee Assets NEW'!$E$2135 -> 900 | E46: ='[3]Trustee Assets NEW'!$E$2136 -> 80317230.35 | F46: ='[3]Trustee Assets NEW'!$E$2137 -> 1124108.66
B48: *Includes properties in possession cases, cases no longer in arrears but excludes any Loans repurchased from the Portfolio or Loans that have been redeemed since May 2008.
B50: ="Losses on Properties in Possession at "&" "&TEXT('Page 1'!E15,"dd mmmm yyyy") -> Losses on Properties in Possession at 31 January 2018 | D50: Number | E50: Loss Amount
E51: £
B53: Total loss on sale brought forward | D53: ='[3]Trustee Assets NEW'!$E$2194 -> 2234 | E53: ='[3]Trustee Assets NEW'!$E$2195 -> 71745264.42
B54: Losses recorded this period | D54: ='[3]Trustee Assets NEW'!$E$2198 -> 0 | E54: ='[3]Trustee Assets NEW'!$E$2199 -> 0
B55: Total loss on sale carried forward | D55: ='[3]Trustee Assets NEW'!$E$2202 -> 2234 | E55: ='[3]Trustee Assets NEW'!$E$2203 -> 71745264.42
B56: Recoveries* | D56: ='[3]Trustee Assets NEW'!$E$2205 -> 51 | E56: ='[3]Trustee Assets NEW'!$E$2206 -> 134913
B58: *This figure represents all live cases and would therefore exclude cases that have been closed due to bankruptcy.
B60: ="Properties in Possession at"&" "&TEXT('Page 1'!E15,"dd mmmm yyyy") -> Properties in Possession at 31 January 2018 | D60: Number | E60: Current Balance
E61: £
B63: Total properties in possession since inception | D63: ='[3]Trustee Assets NEW'!$E$2143 -> 4539 | E63: ='[3]Trustee Assets NEW'!$E$2144 -> 530849819.1
B65: Repossessed (in month) | D65: ='[3]Trustee Assets NEW'!$E$2147 -> 0 | E65: ='[3]Trustee Assets NEW'!$E$2148 -> 0
B66: Sold (in month) | D66: ='[3]Trustee Assets NEW'!$E$2151 -> 0 | E66: ='[3]Trustee Assets NEW'!$E$2152 -> 0
B67: Current number in possession | D67: ='[3]Trustee Assets NEW'!$E$2155 -> 0 | E67: ='[3]Trustee Assets NEW'!$E$2156 -> 0
B69: Total properties sold since inception | D69: ='[3]Trustee Assets NEW'!$E$2159 -> 4539 | E69: ='[3]Trustee Assets NEW'!$E$2160 -> 530849819.1

Sheet Page 4
B2: Product Breakdown | D2: Number | E2: % | F2: Current balance | G2: % | I2: ="Substitution, redemptions and repurchases during period "&TEXT(EOMONTH('Page 1'!E15,-1)+1,"dd mmmm yyyy")&"- "&TEXT(EOMONTH('Page 1'!E15,0)+1,"dd mmmm yyyy") -> Substitution, redemptions and repurchases during period 01 January 2018- 01 February 2018 | J2: Number of accounts | K2: Current balance
B3: (By Balance) | D3: of accounts | E3: by number | F3: £ | G3: by balance | J3: this period | K3: this period
B4: Discounted SVR Loans | D4: ='[3]Trustee Assets NEW'!E2088 -> 262 | E4: =(D4/$D$9)*100 -> 0.2866928557 | F4: ='[3]Trustee Assets NEW'!E2108 -> 3931556.26 | G4: =(F4/$F$9)*100 -> 0.08864147594 | K4: £
B5: Fixed Rate Loans | D5: ='[3]Trustee Assets NEW'!E2089 -> 879 | E5: =(D5/$D$9)*100 -> 0.9618435883 | F5: ='[3]Trustee Assets NEW'!E2109 -> 54148863.93 | G5: =(F5/$F$9)*100 -> 1.220848667 | I5: Substitution & Top up | J5: 0 | K5: 0
B6: Bank of England Base Rate Tracker Loans | D6: ='[3]Trustee Assets NEW'!$E$2090 -> 53773 | E6: =(D6/$D$9)*100 -> 58.840973 | F6: ='[3]Trustee Assets NEW'!E2110 -> 2573085119 | G6: =(F6/$F$9)*100 -> 58.01317534 | I6: Redeemed this period | J6: =+'[3]Trustee Assets NEW'!$E$2209 -> 1389 | K6: =+'Page 3'!N10-'Page 4'!K7 -> 21377667.46
B7: Standard Variable Loans | D7: ='[3]Trustee Assets NEW'!$E$2091 -> 36473 | E7: =(D7/$D$9)*100 -> 39.91049055 | F7: ='[3]Trustee Assets NEW'!E2111 -> 1804180576 | G7: =(F7/$F$9)*100 -> 40.67733451 | I7: Repurchases this period (including arrears)* | J7: ='[3]Trustee Assets NEW'!$E$2184 -> 488 | K7: =-'[3]Trustee Assets NEW'!$E$2185 -> 32450999.99
B8: Unknown | D8: ='[3]Trustee Assets NEW'!$E$2092 -> 0 | E8: =D8/$D$9 -> 0 | F8: 0 | G8: 0 | I8: Arrears repurchased this period* | J8: ='[3]Trustee Assets NEW'!$E$2173 -> 187 | K8: =-'[3]Trustee Assets NEW'!$E$2174 -> 11284287.04
B9: Total | D9: =SUM(D4:D8) -> 91387 | E9: =SUM(E4:E8) -> 100 | F9: =SUM(F4:F7) -> 4435346116 | G9: =SUM(G4:G7) -> 100 | I9: Cumulative arrears repurchased* | J9: ='[3]Trustee Assets NEW'!$E$2189 -> 8433 | K9: =-'[3]Trustee Assets NEW'!$E$2190 -> 893843561.2
I10: * “Arrears” for this purpose means, in respect of a Loan, on any date that two or more Monthly Payments have become due and remain unpaid by the relevant Borrower, and this reporting line relates to repurchases under clause 8.11 of the Mortgage Sale Agreement.
B12: Payment Type | D12: Number | E12: % | F12: Current balance | G12: %
B13: (By Balance) | D13: of accounts | E13: by number | F13: £ | G13: by balance | I13: ="PPR/CPR Analysis "&TEXT(EOMONTH('Page 1'!E17,-2)+1,"dd mmmm yyyy")&"- "&TEXT(EOMONTH('Page 1'!E17,-1)+1,"dd mmmm yyyy") -> PPR/CPR Analysis 01 December 2017- 01 January 2018 | J13: 1 Month | K13: 1 Month Annualised | L13: 3 Month Average | M13: 3 Month Annualised | N13: 12 Month Average
B14: Interest only and Combined repayment & int-only | D14: ='[3]Trustee Assets NEW'!$E$714 -> 38011 | E14: =(D14/D16)*100 -> 41.59344327 | F14: ='[3]Trustee Assets NEW'!E744 -> 2781477787 | G14: =(F14/$F$16)*100 -> 62.71162868 | J14: % | K14: % | L14: % | M14: % | N14: %
B15: Repayment | D15: ='[3]Trustee Assets NEW'!$E$715+'[3]Trustee Assets NEW'!$E$722 -> 53376 | E15: =(D15/D16)*100 -> 58.40655673 | F15: ='[3]Trustee Assets NEW'!E745 -> 1653868329 | G15: =(F15/$F$16)*100 -> 37.28837132 | I15: Total (including unscheduled repayments and repurchases from the Mortgages Trust)
B16: Total | D16: =SUM(D14:D15) -> 91387 | E16: 100 | F16: =SUM(F14:F15) -> 4435346116 | G16: =SUM(G14:G15) -> 100 | I16: Current month | J16: =INDEX('[3]Waterfall - Trustees'!$267:$267,MATCH(EOMONTH('Page 1'!E15,-1),'[3]Waterfall - Trustees'!$5:$5,0)) -> 0.01943072306 | K16: =INDEX('[3]Waterfall - Trustees'!$268:$268,MATCH(EOMONTH('Page 1'!E15,-1),'[3]Waterfall - Trustees'!$5:$5,0)) -> 0.2097957112 | L16: =INDEX('[3]Waterfall - Trustees'!$273:$273,MATCH(EOMONTH('Page 1'!E15,-1),'[3]Waterfall - Trustees'!$5:$5,0)) -> 0.02205778186 | M16: =INDEX('[3]Waterfall - Trustees'!$274:$274,MATCH(EOMONTH('Page 1'!E15,-1),'[3]Waterfall - Trustees'!$5:$5,0)) -> 0.2348386224 | N16: =INDEX('[3]Waterfall - Trustees'!$271:$271,MATCH(EOMONTH('Page 1'!E15,-1),'[3]Waterfall - Trustees'!$5:$5,0)) -> 0.2260209983
I17: Previous month | J17: =INDEX('[3]Waterfall - Trustees'!$267:$267,MATCH(EOMONTH('Page 1'!E15,-2),'[3]Waterfall - Trustees'!$5:$5,0)) -> 0.02366528472 | K17: =INDEX('[3]Waterfall - Trustees'!$268:$268,MATCH(EOMONTH('Page 1'!E15,-2),'[3]Waterfall - Trustees'!$5:$5,0)) -> 0.2497866637 | L17: =INDEX('[3]Waterfall - Trustees'!$273:$273,MATCH(EOMONTH('Page 1'!E15,-2),'[3]Waterfall - Trustees'!$5:$5,0)) -> 0.02336570891 | M17: =INDEX('[3]Waterfall - Trustees'!$274:$274,MATCH(EOMONTH('Page 1'!E15,-2),'[3]Waterfall - Trustees'!$5:$5,0)) -> 0.2470126015 | N17: =INDEX('[3]Waterfall - Trustees'!$271:$271,MATCH(EOMONTH('Page 1'!E15,-2),'[3]Waterfall - Trustees'!$5:$5,0)) -> 0.2250025602
I18: Unscheduled repayments and repurchases from the Mortgages Trust only
B19: Use Of Proceeds | D19: Number | E19: % | F19: Current balance | G19: % | I19: Current month | J19: =INDEX('[3]Waterfall - Trustees'!$269:$269,MATCH(EOMONTH('Page 1'!E15,-1),'[3]Waterfall - Trustees'!$5:$5,0)) -> 0.01236552533 | K19: =INDEX('[3]Waterfall - Trustees'!$270:$270,MATCH(EOMONTH('Page 1'!E15,-1),'[3]Waterfall - Trustees'!$5:$5,0)) -> 0.1386991146 | L19: =INDEX('[3]Waterfall - Trustees'!$275:$275,MATCH(EOMONTH('Page 1'!E15,-1),'[3]Waterfall - Trustees'!$5:$5,0)) -> 0.01497640042 | M19: =INDEX('[3]Waterfall - Trustees'!$276:$276,MATCH(EOMONTH('Page 1'!E15,-1),'[3]Waterfall - Trustees'!$5:$5,0)) -> 0.1668267868 | N19: =INDEX('[3]Waterfall - Trustees'!$272:$272,MATCH(EOMONTH('Page 1'!E15,-1),'[3]Waterfall - Trustees'!$5:$5,0)) -> 0.1626924226
B20: (By Balance) | D20: of accounts | E20: by number | F20: £ | G20: by balance | I20: Previous month | J20: 0.01631917934 | K20: 0.1791752451 | L20: 0.01650718673 | M20: 0.1822526611 | N20: 0.1626929474
B21: Remortgage | D21: ='[3]Trustee Assets NEW'!$E$521+'[3]Trustee Assets NEW'!$E$522+'[3]Trustee Assets NEW'!$E$523+'[3]Trustee Assets NEW'!$E$524+'[3]Trustee Assets NEW'!$E$525+'[3]Trustee Assets NEW'!$E$526+'[3]Trustee Assets NEW'!$E$527+'[3]Trustee Assets NEW'!$E$528+'[3]Trustee Assets NEW'!$E$531 -> 59356 | E21: =(D21/$D$24)*100 -> 64.95015702 | F21: ='[3]Trustee Assets NEW'!$E$559+'[3]Trustee Assets NEW'!$E$560+'[3]Trustee Assets NEW'!$E$561+'[3]Trustee Assets NEW'!$E$562+'[3]Trustee Assets NEW'!$E$563+'[3]Trustee Assets NEW'!$E$564+'[3]Trustee Assets NEW'!$E$565+'[3]Trustee Assets NEW'!$E$566+'[3]Trustee Assets NEW'!$E$569 -> 2567408518 | G21: =(F21/$F$24)*100 -> 57.88518981 | I21: *As of February 2014 the definitions and calculations for PPR/CPR have been amended to align the reporting between all Santander UK secured funding structures.
B22: House Purchase | D22: ='[3]Trustee Assets NEW'!$E$520 -> 32031 | E22: =(D22/$D$24)*100 -> 35.04984298 | F22: ='[3]Trustee Assets NEW'!$E$558 -> 1867937598 | G22: =(F22/$F$24)*100 -> 42.11481019 | I22: Standard Variable Rate - Applicable to underwritten Santander UK mortgages
B23: Unknown | D23: ='[3]Trustee Assets NEW'!$E$533 -> 0 | E23: =(D23/$D$24)*100 -> 0 | F23: ='[3]Trustee Assets NEW'!$E$571 -> 0 | G23: =(F23/$F$24)*100 -> 0 | I23: Standard Variable Rate - Applicable to underwritten Santander UK mortgages
B24: Total | D24: =SUM(D21:D23) -> 91387 | E24: =SUM(E21:E23) -> 100 | F24: =SUM(F21:F23) -> 4435346116 | G24: =SUM(G21:G23) -> 100
I25: Existing Borrowers SVR | J25: =+'[3]Check-Data'!D13 -> 0.0474
I26: Effective date of change | J26: =+'[3]Check-Data'!D14 -> 2017-12-01
B27: Analysis of Mortgage loan size at reporting date | D27: Number | E27: % | F27: Current balance | G27: % | I27: Previous existing Borrowers SVR | J27: =+'[3]Check-Data'!D15 -> 0.0449
B28: £ | D28: of accounts | E28: by number | F28: £ | G28: by balance | I28: Effective date of change | J28: =+'[3]Check-Data'!D16 -> 2016-09-01
B29: 0 to <=50,000 | D29: =SUM('[3]Trustee Assets NEW'!$E$599:$E$602) -> 63133 | E29: =(D29/$D$45)*100 -> 69.08312999 | F29: =SUM('[3]Trustee Assets NEW'!$E$655:$E$658) -> 624469104.5 | G29: =(F29/$F$45)*100 -> 14.07937708
B30: >50,000 to <=100,000 | D30: =SUM('[3]Trustee Assets NEW'!$E$603:$E$604) -> 12503 | E30: =(D30/$D$45)*100 -> 13.681377 | F30: =SUM('[3]Trustee Assets NEW'!$E$659:$E$660) -> 905358844.1 | G30: =(F30/$F$45)*100 -> 20.41236062
B31: >100,000 to <=150,000 | D31: ='[3]Trustee Assets NEW'!E605 -> 7274 | E31: 7.959556611 | F31: ='[3]Trustee Assets NEW'!E661 -> 894174585.1 | G31: 20.16019859
B32: >150,000 to <=200,000 | D32: ='[3]Trustee Assets NEW'!E606 -> 3959 | E32: 4.332126014 | F32: ='[3]Trustee Assets NEW'!E662 -> 681455709.2 | G32: 15.36420589
B33: >200,000 to <=250,000 | D33: ='[3]Trustee Assets NEW'!E607 -> 1974 | E33: 2.160044645 | F33: ='[3]Trustee Assets NEW'!E663 -> 439485232.9 | G33: 9.908702082
B34: >250,000 to <=300,000 | D34: ='[3]Trustee Assets NEW'!E608 -> 1005 | E34: 1.099718778 | F34: ='[3]Trustee Assets NEW'!E664 -> 274671468.3 | G34: 6.192785437
B35: >300,000 to <=350,000 | D35: ='[3]Trustee Assets NEW'!E609 -> 582 | E35: 0.6368520687 | F35: ='[3]Trustee Assets NEW'!E665 -> 188583477.1 | G35: 4.251832263
B36: >350,000 to <=400,000 | D36: ='[3]Trustee Assets NEW'!E610 -> 360 | E36: 0.3939291146 | F36: ='[3]Trustee Assets NEW'!E666 -> 133955935 | G36: 3.020191244
B37: >400,000 to <=450,000 | D37: ='[3]Trustee Assets NEW'!E611 -> 231 | E37: 0.2527711819 | F37: ='[3]Trustee Assets NEW'!E667 -> 97537603.74 | G37: 2.19909791
B38: >450,000 to <=500,000 | D38: ='[3]Trustee Assets NEW'!E612 -> 152 | E38: 0.1663256262 | F38: ='[3]Trustee Assets NEW'!E668 -> 72218486.18 | G38: 1.628249167
B39: >500,000 to <=550,000 | D39: ='[3]Trustee Assets NEW'!E613 -> 96 | E39: 0.1050477639 | F39: ='[3]Trustee Assets NEW'!E669 -> 49334816.28 | G39: 1.112310404
B40: >550,000 to <=600,000 | D40: ='[3]Trustee Assets NEW'!E614 -> 46 | E40: 0.05033538687 | F40: ='[3]Trustee Assets NEW'!E670 -> 26341024.61 | G40: 0.5938888177
B41: >600,000 to <=650,000 | D41: ='[3]Trustee Assets NEW'!E615 -> 32 | E41: 0.0350159213 | F41: ='[3]Trustee Assets NEW'!E671 -> 19873744.53 | G41: 0.4480765201
B42: >650,000 to <=700,000 | D42: ='[3]Trustee Assets NEW'!E616 -> 21 | E42: 0.02297919835 | F42: ='[3]Trustee Assets NEW'!E672 -> 14142747.9 | G42: 0.3188645831
B43: >700,000 to <=750,000 | D43: ='[3]Trustee Assets NEW'!E617 -> 19 | E43: 0.02079070327 | F43: ='[3]Trustee Assets NEW'!E673 -> 13743336.24 | G43: 0.309859386
B44: > 750,000 | D44: =SUM('[3]Trustee Assets NEW'!$E$618:$E$620) -> 0 | E44: 0 | F44: =SUM('[3]Trustee Assets NEW'!$E$674:$E$677) -> 0 | G44: 0
B45: Total | D45: =SUM(D29:D44) -> 91387 | E45: =SUM(E29:E44) -> 100 | F45: =SUM(F29:F44) -> 4435346116 | G45: =SUM(G29:G44) -> 100
B46: ="As at the report date, the maximum loan size was "&TEXT('[3]Trustee Assets NEW'!$E$24,"£#,##0.00")&", the minimum loan size was £0.00 and the average loan size was "&TEXT(F45/D45,"£#,##0.00") -> As at the report date, the maximum loan size was £750,000.00, the minimum loan size was £0.00 and the average loan size was £48,533.67
B49: Geographical Analysis By Region | D49: Number | E49: % | F49: Current balance | G49: %
D50: of accounts | E50: by number | F50: £ | G50: by balance
B51: East Anglia | D51: ='[3]Trustee Assets NEW'!$E$1054 -> 10353 | E51: =(D51/$D$63)*100 -> 11.32874479 | F51: ='[3]Trustee Assets NEW'!$E$1090 -> 533288277.8 | G51: =(F51/$F$63)*100 -> 12.02360005
B52: East Midlands | D52: ='[3]Trustee Assets NEW'!$E$1052 -> 4995 | E52: =(D52/$D$63)*100 -> 5.465766466 | F52: ='[3]Trustee Assets NEW'!$E$1088 -> 206256945.4 | G52: =(F52/$F$63)*100 -> 4.650301015
B53: London | D53: ='[3]Trustee Assets NEW'!$E$1055 -> 14175 | E53: 15.51095889 | F53: ='[3]Trustee Assets NEW'!$E$1091 -> 949977123.1 | G53: 21.41833125
B54: North | D54: ='[3]Trustee Assets NEW'!$E$1049 -> 3301 | E54: 3.612111132 | F54: ='[3]Trustee Assets NEW'!$E$1085 -> 108983337.9 | G54: 2.457155204
B55: North West | D55: ='[3]Trustee Assets NEW'!$E$1050 -> 11758 | E55: 12.86616258 | F55: ='[3]Trustee Assets NEW'!$E$1086 -> 452712791.6 | G55: 10.20693267
B56: Scotland | D56: ='[3]Trustee Assets NEW'!$E$1059 -> 6119 | E56: 6.695700701 | F56: ='[3]Trustee Assets NEW'!$E$1095 -> 216358494.9 | G56: 4.878052113
B57: South East | D57: ='[3]Trustee Assets NEW'!$E$1056 -> 16597 | E57: 18.16122643 | F57: ='[3]Trustee Assets NEW'!$E$1092 -> 954361826 | G57: 21.51718944
B58: South West | D58: ='[3]Trustee Assets NEW'!$E$1057 -> 7733 | E58: 8.461816232 | F58: ='[3]Trustee Assets NEW'!$E$1093 -> 380360556.9 | G58: 8.575667984
B59: Yorkshire and Humberside | D59: ='[3]Trustee Assets NEW'!$E$1051 -> 5944 | E59: 6.504207382 | F59: ='[3]Trustee Assets NEW'!$E$1087 -> 221381609.6 | G59: 4.991304034
B60: Wales | D60: ='[3]Trustee Assets NEW'!$E$1058 -> 4646 | E60: 5.083874074 | F60: ='[3]Trustee Assets NEW'!$E$1094 -> 179056263.4 | G60: 4.037030229
B61: West Midlands | D61: ='[3]Trustee Assets NEW'!$E$1053 -> 5766 | E61: 6.30943132 | F61: ='[3]Trustee Assets NEW'!$E$1089 -> 232608889.2 | G61: 5.244436017
B62: Unknown | D62: 0 | E62: 0 | F62: 0 | G62: 0
B63: Total | D63: =SUM(D51:D62) -> 91387 | E63: =SUM(E51:E62) -> 100 | F63: =SUM(F51:F62) -> 4435346116 | G63: =SUM(G51:G62) -> 100

Sheet Page 5
B2: Remaining Term | C2: Number | D2: % | E2: Current balance | F2: % | H2: Indexed Current Loan to Value | I2: Number | J2: % | K2: Current balance | L2: % | P2: Errors | Q2: =IF(IFERROR(SUM(B1:N70),"Check")<>"Check","Ok","Check") -> Ok
C3: of accounts | D3: by number | E3: £ | F3: by balance | H3: Using current capital balance and HPI indexed latest valuation | I3: of accounts | J3: by number | K3: £ | L3: by balance | P3: Remaining Term | Q3: =IF(C15=INDEX('[3]Trustee Assets'!$37:$37,MATCH('Page 1'!$E$15,'[3]Trustee Assets'!$6:$6,0)),"OK","Check") ->  | R3: =IF(E15=INDEX('[3]Trustee Assets'!$93:$93,MATCH('Page 1'!E15,'[3]Trustee Assets'!$6:$6,0)),"OK","Check") -> 
B4: 0 to <5 | C4: =+SUM('[3]Trustee Assets NEW'!$E$2016:$E$2017) -> 26924 | D4: =(C4/$C$15)*100 -> 29.46152079 | E4: =SUM('[3]Trustee Assets NEW'!$E$2050:$E$2051) -> 697421709.8 | F4: =(E4/$E$15)*100 -> 15.72417781 | H4: >0% =<25% | I4: ='[3]Trustee Assets NEW'!$E$1768 -> 40404 | J4: =(I4/$I$13)*100 -> 44.21197763 | K4: ='[3]Trustee Assets NEW'!$E$1814 -> 779843687.2 | L4: =(K4/$K$13)*100 -> 17.58247647 | P4: Seasoning | Q4: =IF(C52=INDEX('[3]Trustee Assets'!$37:$37,MATCH('Page 1'!$E$15,'[3]Trustee Assets'!$6:$6,0)),"OK","Check") ->  | R4: =IF(E52=INDEX('[3]Trustee Assets'!$93:$93,MATCH('Page 1'!$E$15,'[3]Trustee Assets'!$6:$6,0)),"OK","Check") -> 
B5: >= 5 to < 10 | C5: ='[3]Trustee Assets NEW'!$E$2018 -> 29197 | D5: =(C5/$C$15)*100 -> 31.94874545 | E5: ='[3]Trustee Assets NEW'!$E$2052 -> 1297122434 | F5: 29.24512315 | H5: >25% =<50% | I5: =SUM('[3]Trustee Assets NEW'!$E$1769:$E$1770) -> 30943 | J5: =(I5/$I$13)*100 -> 33.85930165 | K5: =SUM('[3]Trustee Assets NEW'!$E$1815:$E$1816) -> 1900637787 | L5: 42.85207371 | P5: Indexed LTV | Q5: =IF(I13=INDEX('[3]Trustee Assets'!$37:$37,MATCH('Page 1'!$E$15,'[3]Trustee Assets'!$6:$6,0)),"OK","Check") ->  | R5: =IF(K13=INDEX('[3]Trustee Assets'!$93:$93,MATCH('Page 1'!$E$15,'[3]Trustee Assets'!$6:$6,0)),"OK","Check") -> 
B6: >= 10 to < 15 | C6: ='[3]Trustee Assets NEW'!$E$2019 -> 26631 | D6: 29.14090626 | E6: ='[3]Trustee Assets NEW'!$E$2053 -> 1764775990 | F6: 39.7889126 | H6: >50% =<75% | I6: =SUM('[3]Trustee Assets NEW'!$E$1771:$E$1775) -> 16896 | J6: 18.48840645 | K6: =SUM('[3]Trustee Assets NEW'!$E$1817:$E$1821) -> 1476857933 | L6: 33.29746753 | P6: LTV @Last Valuation | Q6: =IF(I28=INDEX('[3]Trustee Assets'!$37:$37,MATCH('Page 1'!$E$15,'[3]Trustee Assets'!$6:$6,0)),"OK","Check") ->  | R6: =IF(K28=INDEX('[3]Trustee Assets'!$93:$93,MATCH('Page 1'!$E$15,'[3]Trustee Assets'!$6:$6,0)),"OK","Check") -> 
B7: >=15 to < 20 | C7: ='[3]Trustee Assets NEW'!E2020 -> 7587 | D7: 8.302056091 | E7: ='[3]Trustee Assets NEW'!$E$2054 -> 588909820.5 | F7: 13.27765196 | H7: >75% =<80% | I7: ='[3]Trustee Assets NEW'!E1776 -> 1181 | J7: 1.292306346 | K7: ='[3]Trustee Assets NEW'!E1822 -> 103728085 | L7: 2.338669458 | P7: Original LTV | Q7: =IF(I43=INDEX('[3]Trustee Assets'!$37:$37,MATCH('Page 1'!$E$15,'[3]Trustee Assets'!$6:$6,0)),"OK","Check") ->  | R7: =IF(K28=INDEX('[3]Trustee Assets'!$93:$93,MATCH('Page 1'!$E$15,'[3]Trustee Assets'!$6:$6,0)),"OK","Check") -> 
B8: >= 20 to < 25 | C8: ='[3]Trustee Assets NEW'!E2021 -> 754 | D8: 0.8250626457 | E8: ='[3]Trustee Assets NEW'!$E$2055 -> 60879696.9 | F8: 1.372603069 | H8: >80% =<85% | I8: ='[3]Trustee Assets NEW'!E1777 -> 846 | J8: 0.9257334194 | K8: ='[3]Trustee Assets NEW'!E1823 -> 71275311.88 | L8: 1.606984213
B9: >= 25 to < 30 | C9: ='[3]Trustee Assets NEW'!E2022 -> 271 | D9: 0.2965410835 | E9: ='[3]Trustee Assets NEW'!$E$2056 -> 22111679.79 | F9: 0.4985333548 | H9: >85% =<90% | I9: ='[3]Trustee Assets NEW'!E1778 -> 678 | J9: 0.7418998326 | K9: ='[3]Trustee Assets NEW'!E1824 -> 62486007.77 | L9: 1.408819202
B10: >= 30 to < 35 | C10: ='[3]Trustee Assets NEW'!E2023 -> 23 | D10: 0.02516769344 | E10: ='[3]Trustee Assets NEW'!$E$2057 -> 4124785.16 | F10: 0.09299804462 | H10: >90% =<95% | I10: ='[3]Trustee Assets NEW'!E1779 -> 329 | J10: 0.3600074409 | K10: ='[3]Trustee Assets NEW'!E1825 -> 30547246.26 | L10: 0.6887229421
B11: >= 35 to < 40 | C11: ='[3]Trustee Assets NEW'!E2024 -> 0 | D11: 0 | E11: ='[3]Trustee Assets NEW'!E2058 -> 0 | F11: 0 | H11: >95% | I11: =SUM('[3]Trustee Assets NEW'!$E$1780:$E$1784) -> 110 | J11: 0.1203672295 | K11: =SUM('[3]Trustee Assets NEW'!$E$1826:$E$1830) -> 9970058.14 | L11: 0.2247864739
B12: >= 40 to < 45 | C12: ='[3]Trustee Assets NEW'!E2025 -> 0 | D12: 0 | E12: ='[3]Trustee Assets NEW'!E2059 -> 0 | F12: 0 | H12: Unknown | I12: ='[3]Trustee Assets NEW'!$E$1785 -> 0 | J12: 0 | K12: ='[3]Trustee Assets NEW'!$E$1831 -> 0 | L12: 0
B13: >= 45 | C13: ='[3]Trustee Assets NEW'!$E$2026 -> 0 | D13: 0 | E13: ='[3]Trustee Assets NEW'!E2060 -> 0 | F13: 0 | H13: Total | I13: =SUM(I4:I12) -> 91387 | J13: =SUM(J4:J12) -> 100 | K13: =SUM(K4:K12) -> 4435346116 | L13: =+SUM(L4:L12) -> 100
B14: Unknown | C14: ='[3]Trustee Assets NEW'!$E$2027 -> 0 | D14: 0 | E14: ='[3]Trustee Assets NEW'!E2061 -> 0 | F14: 0 | H14: ="As at the report date, the maximum indexed LTV was "&'[3]Trustee Assets NEW'!$E$40*100&" %, the minimum indexed LTV was "&'[3]Trustee Assets NEW'!$E$36*100&"% and the weighted average indexed LTV was "&'[3]Trustee Assets NEW'!$E$41*100&"%" -> As at the report date, the maximum indexed LTV was 122 %, the minimum indexed LTV was 0% and the weighted average indexed LTV was 44.6%
B15: Total | C15: =SUM(C4:C14) -> 91387 | D15: =SUM(D4:D14) -> 100 | E15: =SUM(E4:E14) -> 4435346116 | F15: =SUM(F4:F14) -> 100
B16: ="As at the report date, the maximum remaining term for a loan was "& '[3]Trustee Assets NEW'!$E$29&" months, the minimum remaining term was "&'[3]Trustee Assets NEW'!$E$28&" months and the weighted average remaining term was "& '[3]Trustee Assets NEW'!$E$30&" months." -> As at the report date, the maximum remaining term for a loan was 394 months, the minimum remaining term was 0 months and the weighted average remaining term was 126.4805 months.
H17: Loan to Value at Last Valuation | I17: Number | J17: % | K17: Current balance | L17: %
H18: Using current capital balance and unindexed latest valuation | I18: of accounts | J18: by number | K18: £ | L18: by balance
B19: Seasoning | C19: Number | D19: % | E19: Current balance | F19: % | H19: >0% =<25% | I19: ='[3]Trustee Assets NEW'!$E$1392 -> 28990 | J19: =(I19/$I$28)*100 -> 31.7222362 | K19: ='[3]Trustee Assets NEW'!$E$1438 -> 348890758.5 | L19: =(K19/$K$28)*100 -> 7.86614504
C20: of accounts | D20: by number | E20: £ | F20: by balance | H20: >25% =<50% | I20: =SUM('[3]Trustee Assets NEW'!$E$1393:$E$1394) -> 26121 | J20: =(I20/$I$28)*100 -> 28.58284001 | K20: =SUM('[3]Trustee Assets NEW'!$E$1439:$E$1440) -> 1065420661 | L20: =(K20/$K$28)*100 -> 24.02113912
B21: 0 to <6 | C21: ='[3]Trustee Assets NEW'!E1865 -> 0 | D21: =(C21/$C$52)*100 -> 0 | E21: ='[3]Trustee Assets NEW'!E1939 -> 0 | F21: =(E21/$E$52)*100 -> 0 | H21: >50% =<75% | I21: =SUM('[3]Trustee Assets NEW'!$E$1395:$E$1399) -> 23177 | J21: 25.36137525 | K21: =SUM('[3]Trustee Assets NEW'!$E$1441:$E$1445) -> 1730032644 | L21: 39.00558377
B22: >= 6 to < 12 | C22: ='[3]Trustee Assets NEW'!E1866 -> 0 | D22: =(C22/$C$52)*100 -> 0 | E22: ='[3]Trustee Assets NEW'!E1940 -> 0 | F22: =(E22/$E$52)*100 -> 0 | H22: >75% =<80% | I22: ='[3]Trustee Assets NEW'!E1400 -> 4012 | J22: 4.390121133 | K22: ='[3]Trustee Assets NEW'!E1446 -> 384017798.7 | L22: 8.658124724
B23: >= 12 to < 18 | C23: ='[3]Trustee Assets NEW'!E1867 -> 0 | D23: 0 | E23: ='[3]Trustee Assets NEW'!E1941 -> 0 | F23: 0 | H23: >80% =<85% | I23: ='[3]Trustee Assets NEW'!E1401 -> 3236 | J23: 3.540985042 | K23: ='[3]Trustee Assets NEW'!E1447 -> 310875752.7 | L23: 7.009052835
B24: >= 18 to < 24 | C24: ='[3]Trustee Assets NEW'!E1868 -> 0 | D24: 0 | E24: ='[3]Trustee Assets NEW'!E1942 -> 0 | F24: 0 | H24: >85% =<90% | I24: ='[3]Trustee Assets NEW'!E1402 -> 2976 | J24: 3.256480681 | K24: ='[3]Trustee Assets NEW'!E1448 -> 326375009.3 | L24: 7.358501473
B25: >= 24 to < 30 | C25: ='[3]Trustee Assets NEW'!E1869 -> 35 | D25: 0.03829866392 | E25: ='[3]Trustee Assets NEW'!E1943 -> 5286731.46 | F25: 0.1191954657 | H25: >90% =<95% | I25: ='[3]Trustee Assets NEW'!E1403 -> 1490 | J25: 1.630428836 | K25: ='[3]Trustee Assets NEW'!E1449 -> 166683675.2 | L25: 3.758075938
B26: >= 30 to < 36 | C26: ='[3]Trustee Assets NEW'!E1870 -> 25 | D26: 0.02735618852 | E26: ='[3]Trustee Assets NEW'!E1944 -> 2914018.75 | F26: 0.06569991775 | H26: >95% | I26: =SUM('[3]Trustee Assets NEW'!$E$1404:$E$1408) -> 1385 | J26: 1.515532844 | K26: =SUM('[3]Trustee Assets NEW'!$E$1450:$E$1454) -> 103049816.2 | L26: 2.323377106
B27: >= 36 to < 42 | C27: ='[3]Trustee Assets NEW'!E1871 -> 36 | D27: 0.03939291146 | E27: ='[3]Trustee Assets NEW'!E1945 -> 4469113.63 | F27: 0.1007613276 | H27: Unknown | I27: ='[3]Trustee Assets NEW'!$E$1409 -> 0 | J27: 0 | K27: ='[3]Trustee Assets NEW'!$E$1455 -> 0 | L27: 0
B28: >= 42 to < 48 | C28: ='[3]Trustee Assets NEW'!E1872 -> 45 | D28: 0.04924113933 | E28: ='[3]Trustee Assets NEW'!E1946 -> 4770538.22 | F28: 0.1075572931 | H28: Total | I28: =SUM(I19:I27) -> 91387 | J28: =SUM(J19:J27) -> 100 | K28: =SUM(K19:K27) -> 4435346116 | L28: =SUM(L19:L27) -> 100
B29: >=48 to < 54 | C29: ='[3]Trustee Assets NEW'!E1873 -> 41 | D29: 0.04486414917 | E29: ='[3]Trustee Assets NEW'!E1947 -> 4408336.89 | F29: 0.09939104581 | H29: ="As at the report date, the maximum unindexed LTV was "&'[3]Trustee Assets NEW'!$E$37*100&" %, the minimum unindexed LTV was "&'[3]Trustee Assets NEW'!$E$36*100&"% and the weighted average unindexed LTV was "&'[3]Trustee Assets NEW'!$E$38*100&"%" -> As at the report date, the maximum unindexed LTV was 195 %, the minimum unindexed LTV was 0% and the weighted average unindexed LTV was 60.19%
B30: >=54 to < 60 | C30: ='[3]Trustee Assets NEW'!E1874 -> 31 | D30: 0.03392167376 | E30: ='[3]Trustee Assets NEW'!E1948 -> 2362687.72 | F30: 0.05326952302
B31: >= 60 to < 66 | C31: ='[3]Trustee Assets NEW'!E1875 -> 666 | D31: 0.7287688621 | E31: ='[3]Trustee Assets NEW'!E1949 -> 34225958.06 | F31: 0.7716637477
B32: >= 66 to < 72 | C32: ='[3]Trustee Assets NEW'!E1876 -> 1180 | D32: 1.291212098 | E32: ='[3]Trustee Assets NEW'!E1950 -> 61052916.14 | F32: 1.376508497 | H32: Original Loan to Value at Last Valuation | I32: Number | J32: % | K32: Current balance | L32: %
B33: >= 72 to < 78 | C33: ='[3]Trustee Assets NEW'!E1877 -> 1237 | D33: 1.353584208 | E33: ='[3]Trustee Assets NEW'!E1951 -> 78532242.77 | F33: 1.7706001 | H33: Using original balance and valuation amount | I33: of accounts | J33: by number | K33: £ | L33: by balance
B34: >= 78 to < 84 | C34: ='[3]Trustee Assets NEW'!E1878 -> 1636 | D34: 1.790188977 | E34: ='[3]Trustee Assets NEW'!E1952 -> 107981930.2 | F34: 2.434577311 | H34: >0% =<25% | I34: ='[3]Trustee Assets NEW'!$E$1242 -> 5733 | J34: =(I34/$I$43)*100 -> 6.273321151 | K34: ='[3]Trustee Assets NEW'!$E$1288 -> 100007472.2 | L34: =(K34/$K$43)*100 -> 2.254783947
B35: >= 84 to < 90 | C35: ='[3]Trustee Assets NEW'!E1879 -> 1575 | D35: 1.723439877 | E35: ='[3]Trustee Assets NEW'!E1953 -> 105723575.3 | F35: 2.383660091 | H35: >25% =<50% | I35: =SUM('[3]Trustee Assets NEW'!$E$1243:$E$1244) -> 22319 | J35: =(I35/$I$43)*100 -> 24.42251086 | K35: =SUM('[3]Trustee Assets NEW'!$E$1289:$E$1290) -> 653053325.8 | L35: =(K35/$K$43)*100 -> 14.72384136
B36: >= 90 to < 96 | C36: ='[3]Trustee Assets NEW'!E1880 -> 794 | D36: 0.8688325473 | E36: ='[3]Trustee Assets NEW'!E1954 -> 46938564.43 | F36: 1.058284138 | H36: >50% =<75% | I36: =SUM('[3]Trustee Assets NEW'!$E$1245:$E$1249) -> 37806 | J36: 41.36912252 | K36: =SUM('[3]Trustee Assets NEW'!$E$1291:$E$1295) -> 1967429895 | L36: 44.35797891
B37: >= 96 to < 102 | C37: ='[3]Trustee Assets NEW'!E1881 -> 850 | D37: 0.9301104096 | E37: ='[3]Trustee Assets NEW'!E1955 -> 54005907.8 | F37: 1.217625556 | H37: >75% =<80% | I37: ='[3]Trustee Assets NEW'!E1250 -> 5715 | J37: 6.253624695 | K37: ='[3]Trustee Assets NEW'!E1296 -> 348741893.3 | L37: 7.862788703
B38: >= 102 to < 108 | C38: ='[3]Trustee Assets NEW'!E1882 -> 1813 | D38: 1.983870791 | E38: ='[3]Trustee Assets NEW'!E1956 -> 108045444.8 | F38: 2.436009322 | H38: >80% =<85% | I38: ='[3]Trustee Assets NEW'!E1251 -> 7760 | J38: 8.491360916 | K38: ='[3]Trustee Assets NEW'!E1297 -> 558667488.6 | L38: 12.59580366
B39: >= 108 to < 114 | C39: ='[3]Trustee Assets NEW'!E1883 -> 2791 | D39: 3.054044886 | E39: ='[3]Trustee Assets NEW'!E1957 -> 176943164.8 | F39: 3.989387981 | H39: >85% =<90% | I39: ='[3]Trustee Assets NEW'!E1252 -> 8297 | J39: 9.078971845 | K39: ='[3]Trustee Assets NEW'!E1298 -> 596567932.1 | L39: 13.45031293
B40: >= 114 to < 120 | C40: ='[3]Trustee Assets NEW'!E1884 -> 4891 | D40: 5.351964721 | E40: ='[3]Trustee Assets NEW'!E1958 -> 370865915.4 | F40: 8.361600328 | H40: >90% =<95% | I40: ='[3]Trustee Assets NEW'!E1253 -> 1384 | J40: 1.514438596 | K40: ='[3]Trustee Assets NEW'!E1299 -> 79418146.14 | L40: 1.790573815
B41: >= 120 to < 126 | C41: ='[3]Trustee Assets NEW'!E1885 -> 6933 | D41: 7.5864182 | E41: ='[3]Trustee Assets NEW'!E1959 -> 505947738.9 | F41: 11.40717603 | H41: >95% | I41: =SUM('[3]Trustee Assets NEW'!$E$1254:$E$1258) -> 2373 | J41: 2.596649414 | K41: =SUM('[3]Trustee Assets NEW'!$E$1300:$E$1304) -> 131459963 | L41: 2.963916672
B42: >= 126 to < 132 | C42: ='[3]Trustee Assets NEW'!E1886 -> 7547 | D42: 8.25828619 | E42: ='[3]Trustee Assets NEW'!E1960 -> 465168548.4 | F42: 10.48776209 | H42: Unknown | I42: ='[3]Trustee Assets NEW'!$E$1259 -> 0 | J42: 0 | K42: ='[3]Trustee Assets NEW'!$E$1305 -> 0 | L42: 0
B43: >= 132 to < 138 | C43: ='[3]Trustee Assets NEW'!E1887 -> 8694 | D43: 9.513388119 | E43: ='[3]Trustee Assets NEW'!E1961 -> 449203428.3 | F43: 10.12781002 | H43: Total | I43: =SUM(I34:I42) -> 91387 | J43: 100 | K43: =SUM(K34:K42) -> 4435346116 | L43: =SUM(L34:L42) -> 100
B44: >= 138 to < 144 | C44: ='[3]Trustee Assets NEW'!E1888 -> 9429 | D44: 10.31766006 | E44: ='[3]Trustee Assets NEW'!E1962 -> 442917394.9 | F44: 9.986084136 | H44: ="As at the report date, the maximum original LTV was "&'[3]Trustee Assets NEW'!$E$34*100&" ,the minimum LTV at origination was"&'[3]Trustee Assets NEW'!$E$33*100&" and the weighted average LTV at origination was"&'[3]Trustee Assets NEW'!$E$35*100 -> As at the report date, the maximum original LTV was 331 ,the minimum LTV at origination was2 and the weighted average LTV at origination was69.27
B45: >= 144 to < 150 | C45: ='[3]Trustee Assets NEW'!E1889 -> 5696 | D45: 6.232833992 | E45: ='[3]Trustee Assets NEW'!E1963 -> 239559021.5 | F45: 5.401134776
B46: >= 150 to < 156 | C46: ='[3]Trustee Assets NEW'!E1890 -> 4523 | D46: 4.949281626 | E46: ='[3]Trustee Assets NEW'!E1964 -> 175379876.7 | F46: 3.954141845
B47: >= 156 to < 162 | C47: ='[3]Trustee Assets NEW'!E1891 -> 4224 | D47: 4.622101612 | E47: ='[3]Trustee Assets NEW'!E1965 -> 159250344.1 | F47: 3.590482906
B48: >= 162 to < 168 | C48: ='[3]Trustee Assets NEW'!E1892 -> 5642 | D48: 6.173744625 | E48: ='[3]Trustee Assets NEW'!E1966 -> 182139491.5 | F48: 4.106545166
B49: >= 168 to < 174 | C49: ='[3]Trustee Assets NEW'!E1893 -> 5632 | D49: 6.162802149 | E49: ='[3]Trustee Assets NEW'!E1967 -> 184921260.4 | F49: 4.169263357
B50: >= 174 to < 180 | C50: ='[3]Trustee Assets NEW'!E1894 -> 3851 | D50: 4.213947279 | E50: ='[3]Trustee Assets NEW'!E1968 -> 113456461.4 | F50: 2.558006939
B51: >= 180 | C51: ='[3]Trustee Assets NEW'!E1895 -> 11570 | D51: 12.66044405 | E51: ='[3]Trustee Assets NEW'!E1969 -> 348875503.2 | F51: 7.865801092
B52: Total | C52: =SUM(C21:C51) -> 91387 | D52: =SUM(D21:D51) -> 100 | E52: =SUM(E21:E51) -> 4435346116 | F52: =SUM(F21:F51) -> 100
B53: ="As at the report date, the maximum seasoning for a loan was "&'[3]Trustee Assets NEW'!$E$26&" months, the minimum seasoning was "&'[3]Trustee Assets NEW'!$E$25&" months and the weighted average seasoning was "&'[3]Trustee Assets NEW'!$E$27&" months." -> As at the report date, the maximum seasoning for a loan was 269 months, the minimum seasoning was 24 months and the weighted average seasoning was 134 months.

Sheet Page 6
B2: LOAN NOTE REPORT
B5: Closing Date | C5: 2011-09-21 | J5: Series 2011-3 Notes
B7: 2011-3 | C7: ISIN (Reg S) | D7: ISIN (144a) | E7: Current Ratings S&P/Moody's/Fitch | F7: Original Ratings S&P/Moody's/Fitch | G7: Currency | H7: Applicable Exchange Rate | I7: Original Balance | J7: Repaid | K7: Outstanding | L7: Reference rate | M7: Margin p.a.% | N7: Current interest rate p.a.% | O7: Accrual Period | P7: Next coupon date | Q7: Interest next coupon | R7: Step up Date | S7: Legal Maturity | T7: Bond Type
B9: A1 | C9: XS0679914787 | D9: US43641NBG88 | E9: A-1+/P-1/F1+ | F9: A-1+/P-1/F1+ | G9: USD | H9: 1.5794 | I9: 500000000 | J9: -500000000 | K9: 0 | L9: 1M USD LIBOR | M9: 0.0013 | O9: - | P9: - | Q9: - | R9: n/a | S9: 2012-07-01 | T9: Bullet
B10: A2 | C10: XS0679914860 | D10: US43641NBH61 | E10: AAA/Aaa/AAA | F10: AAA/Aaa/AAA | G10: USD | H10: 1.57675 | I10: 2000000000 | J10: -2000000000 | K10: 0 | L10: 3M USD LIBOR | M10: 0.0155 | O10: - | P10: - | Q10: - | R10: 2015-01-01 | S10: 2054-10-01 | T10: Sched AM
B11: A3 | C11: XS0679918853 | D11: XS0679922889 | E11: AAA/Aaa/AAA | F11: AAA/Aaa/AAA | G11: EUR | H11: 1.145869142 | I11: 200000000 | J11: -200000000 | K11: 0 | L11: 3M EURIBOR | M11: 0.014 | O11: - | P11: - | Q11: - | R11: 2015-01-01 | S11: 2054-10-01 | T11: Sched AM
B12: A4 | C12: XS0679914944 | D12: XS0679923937 | E12: AAA/Aaa/AAA | F12: AAA/Aaa/AAA | G12: GBP | H12: - | I12: =INDEX('[3]Notes - Issuer'!$379:$379,MATCH(TEXT(DATE(2000,MONTH('Page 1'!E17),1),"mmm")&+TEXT(DATE(YEAR('Page 1'!E17),1,1),"yy"),'[3]Notes - Issuer'!$2:$2,0)) -> 165000000 | J12: =K12-I12 -> -165000000 | K12: 0 | L12: 3M GBP LIBOR | M12: 0.0165 | N12: - | O12: =IF(K12=0,"-",INDEX('[3]Notes - Issuer'!$420:$420,MATCH(TEXT(DATE(2000,MONTH('Page 1'!E17),1),"mmm")&+TEXT(DATE(YEAR('Page 1'!E17),1,1),"yy"),'[3]Notes - Issuer'!$2:$2,0))) -> - | P12: =IF(K12=0,"-",INDEX('[3]Notes - Issuer'!$421:$421,MATCH(TEXT(DATE(2000,MONTH('Page 1'!E17),1),"mmm")&+TEXT(DATE(YEAR('Page 1'!E17),1,1),"yy"),'[3]Notes - Issuer'!$2:$2,0))) -> - | Q12: =IF(K12=0,"-",INDEX('[3]Notes - Issuer'!$419:$419,MATCH(TEXT(DATE(2000,MONTH('Page 1'!E17),1),"mmm")&+TEXT(DATE(YEAR('Page 1'!E17),1,1),"yy"),'[3]Notes - Issuer'!$2:$2,0))) -> - | R12: 2016-10-01 | S12: 2054-10-01 | T12: Sched AM
B13: A5 | C13: XS0679915081 | D13: US43641NBL73 | E13: AAA/Aaa/AAA | F13: AAA/Aaa/AAA | G13: USD | H13: 1.58 | I13: =INDEX('[3]Notes - Issuer'!$434:$434,MATCH(TEXT(DATE(2000,MONTH('Page 1'!E17),1),"mmm")&+TEXT(DATE(YEAR('Page 1'!E17),1,1),"yy"),'[3]Notes - Issuer'!$2:$2,)) -> 500000000 | J13: =K13-I13 -> 0 | K13: =INDEX('[3]Notes - Issuer'!$457:$457,MATCH(TEXT(DATE(2000,MONTH('Page 1'!E17),1),"mmm")&+TEXT(DATE(YEAR('Page 1'!E17),1,1),"yy"),'[3]Notes - Issuer'!$2:$2,0)) -> 500000000 | L13: USD FIXED | M13: 0 | N13: =INDEX('[3]Notes - Issuer'!$470:$470,MATCH(TEXT(DATE(2000,MONTH('Page 1'!E17),1),"mmm")&+TEXT(DATE(YEAR('Page 1'!E17),1,1),"yy"),'[3]Notes - Issuer'!$2:$2,0)) -> 0.03615 | O13: =INDEX('[3]Notes - Issuer'!$475:$475,MATCH(TEXT(DATE(2000,MONTH('Page 1'!E17),1),"mmm")&+TEXT(DATE(YEAR('Page 1'!E17),1,1),"yy"),'[3]Notes - Issuer'!$2:$2,0)) -> 15/01/2018 - 15/07/2019 | P13: =INDEX('[3]Notes - Issuer'!$476:$476,MATCH(TEXT(DATE(2000,MONTH('Page 1'!E17),1),"mmm")&+TEXT(DATE(YEAR('Page 1'!E17),1,1),"yy"),'[3]Notes - Issuer'!$2:$2,0)) -> 15/07/2019 | Q13: =INDEX('[3]Notes - Issuer'!$474:$474,MATCH(TEXT(DATE(2000,MONTH('Page 1'!E17),1),"mmm")&+TEXT(DATE(YEAR('Page 1'!E17),1,1),"yy"),'[3]Notes - Issuer'!$2:$2,0)) -> 9037500 | R13: 2019-01-01 | S13: 2054-10-01 | T13: Sched AM
B14: A6 | C14: XS0679915164 | D14: US43641NBM56 | E14: AAA/Aaa/AAA | F14: AAA/Aaa/AAA | G14: USD | H14: 1.58 | I14: 250000000 | J14: =I14-K14 -> 0 | K14: =INDEX('[3]Notes - Issuer'!$513:$513,MATCH(TEXT(DATE(2000,MONTH('Page 1'!E17),1),"mmm")&+TEXT(DATE(YEAR('Page 1'!E17),1,1),"yy"),'[3]Notes - Issuer'!$2:$2,0)) -> 250000000 | L14: 3M USD LIBOR | M14: 0.0175 | N14: =INDEX('[3]Notes - Issuer'!$525:$525,MATCH(TEXT(DATE(2000,MONTH('Page 1'!E17),1),"mmm")&+TEXT(DATE(YEAR('Page 1'!E17),1,1),"yy"),'[3]Notes - Issuer'!$2:$2,0)) -> 0.0347152 | O14: =INDEX('[3]Notes - Issuer'!$530:$530,MATCH(TEXT(DATE(2000,MONTH('Page 1'!E17),1),"mmm")&+TEXT(DATE(YEAR('Page 1'!E17),1,1),"yy"),'[3]Notes - Issuer'!$2:$2,0)) -> 16/01/2018 - 16/04/2018 | P14: =INDEX('[3]Notes - Issuer'!$531:$531,MATCH(TEXT(DATE(2000,MONTH('Page 1'!E17),1),"mmm")&+TEXT(DATE(YEAR('Page 1'!E17),1,1),"yy"),'[3]Notes - Issuer'!$2:$2,0)) -> 2018-04-16 | Q14: =INDEX('[3]Notes - Issuer'!$529:$529,MATCH(TEXT(DATE(2000,MONTH('Page 1'!E17),1),"mmm")&+TEXT(DATE(YEAR('Page 1'!E17),1,1),"yy"),'[3]Notes - Issuer'!$2:$2,0)) -> 2169700 | R14: 2019-01-01 | S14: 2054-10-01 | T14: Sched AM
P15: . | Q15: #
B18: Closing Date | C18: 2016-05-26 | J18: Series 2016-1 Notes
B20: 2016-1 | C20: ISIN (Reg S) | D20: ISIN (144a) | E20: Current Ratings S&P/Moody's/Fitch | F20: Original Ratings S&P/Moody's/Fitch | G20: Currency | H20: Applicable Exchange Rate | I20: Original Balance | J20: Repaid | K20: Outstanding | L20: Reference rate | M20: Margin p.a.% | N20: Current interest rate p.a.% | O20: Accrual Period | P20: Next coupon date | Q20: Interest next coupon | R20: Step up Date | S20: Legal Maturity | T20: Bond Type | U20: Placement
B22: A1 | C22: XS1419677387 | D22: US43641NBW39 | E22: AAA/Aaa/AAA | F22: AAA/Aaa/AAA | G22: USD | H22: 1.4602 | I22: =INDEX('[3]Notes - Issuer'!$1038:$1038,MATCH(TEXT(DATE(2000,MONTH('Page 1'!E17),1),"mmm")&+TEXT(DATE(YEAR('Page 1'!E17),1,1),"yy"),'[3]Notes - Issuer'!$2:$2,0)) -> 375000000 | J22: =K22-I22 -> -375000000 | K22: 0 | L22: 1M USD LIBOR | M22: 0.006 | N22: =INDEX('[3]Notes - Issuer'!$1074:$1074,MATCH(+TEXT(DATE(2000,MONTH('Page 1'!E15),1),"mmm")&+TEXT(DATE(YEAR('Page 1'!E15),1,1),"yy"),'[3]Notes - Issuer'!$2:$2,0)) ->  | O22: =INDEX('[3]Notes - Issuer'!$1079:$1079,MATCH(+TEXT(DATE(2000,MONTH('Page 1'!E15),1),"mmm")&+TEXT(DATE(YEAR('Page 1'!E15),1,1),"yy"),'[3]Notes - Issuer'!$2:$2,0)) ->  | P22: =INDEX('[3]Notes - Issuer'!$1080:$1080,MATCH(+TEXT(DATE(2000,MONTH('Page 1'!E15),1),"mmm")&+TEXT(DATE(YEAR('Page 1'!E15),1,1),"yy"),'[3]Notes - Issuer'!$2:$2,0)) ->  | Q22: =INDEX('[3]Notes - Issuer'!$1078:$1078,MATCH(+TEXT(DATE(2000,MONTH('Page 1'!E15),1),"mmm")&+TEXT(DATE(YEAR('Page 1'!E15),1,1),"yy"),'[3]Notes - Issuer'!$2:$2,0)) ->  | R22: N/A | S22: 2017-04-01 | T22: Sched AM | U22: Public
B23: A2 | C23: XS1419677544 | D23: XS1419805996 | E23: AAA/Aaa/AAA | F23: AAA/Aaa/AAA | G23: GBP | H23: - | I23: =INDEX('[3]Notes - Issuer'!$1093:$1093,MATCH(TEXT(DATE(2000,MONTH('Page 1'!E17),1),"mmm")&+TEXT(DATE(YEAR('Page 1'!E17),1,1),"yy"),'[3]Notes - Issuer'!$2:$2,0)) -> 340000000 | J23: =K23-I23 -> 0 | K23: =INDEX('[3]Notes - Issuer'!$1117:$1117,MATCH(TEXT(DATE(2000,MONTH('Page 1'!E17),1),"mmm")&+TEXT(DATE(YEAR('Page 1'!E17),1,1),"yy"),'[3]Notes - Issuer'!$2:$2,0)) -> 340000000 | L23: 3M GBP LIBOR | M23: 0.0075 | N23: =INDEX('[3]Notes - Issuer'!$1129:$1129,MATCH(TEXT(DATE(2000,MONTH('Page 1'!E17),1),"mmm")&+TEXT(DATE(YEAR('Page 1'!E17),1,1),"yy"),'[3]Notes - Issuer'!$2:$2,0)) -> 0.0127156 | O23: =INDEX('[3]Notes - Issuer'!$1134:$1134,MATCH(TEXT(DATE(2000,MONTH('Page 1'!E17),1),"mmm")&+TEXT(DATE(YEAR('Page 1'!E17),1,1),"yy"),'[3]Notes - Issuer'!$2:$2,0)) -> 16/01/2018 - 16/04/2018 | P23: =INDEX('[3]Notes - Issuer'!$1135:$1135,MATCH(TEXT(DATE(2000,MONTH('Page 1'!E17),1),"mmm")&+TEXT(DATE(YEAR('Page 1'!E17),1,1),"yy"),'[3]Notes - Issuer'!$2:$2,0)) -> 2018-04-16 | Q23: =INDEX('[3]Notes - Issuer'!$1133:$1133,MATCH(TEXT(DATE(2000,MONTH('Page 1'!E17),1),"mmm")&+TEXT(DATE(YEAR('Page 1'!E17),1,1),"yy"),'[3]Notes - Issuer'!$2:$2,0)) -> 1066020.16 | R23: 2021-07-15 | S23: 2054-10-01 | T23: Sched AM | U23: Public
B24: Z | C24: XS1419677460 | D24: n/a | E24: n/a | F24: n/a | G24: GBP | H24: - | I24: =INDEX('[3]Notes - Issuer'!$1148:$1148,MATCH(TEXT(DATE(2000,MONTH('Page 1'!E17),1),"mmm")&+TEXT(DATE(YEAR('Page 1'!E17),1,1),"yy"),'[3]Notes - Issuer'!$2:$2,0)) -> 582000000 | J24: =K24-I24 -> -194440380 | K24: =INDEX('[3]Notes - Issuer'!$1172:$1172,MATCH(TEXT(DATE(2000,MONTH('Page 1'!E17),1),"mmm")&+TEXT(DATE(YEAR('Page 1'!E17),1,1),"yy"),'[3]Notes - Issuer'!$2:$2,0)) -> 387559620 | L24: 3M GBP LIBOR | M24: 0.009 | N24: =INDEX('[3]Notes - Issuer'!$1184:$1184,MATCH(TEXT(DATE(2000,MONTH('Page 1'!E17),1),"mmm")&+TEXT(DATE(YEAR('Page 1'!E17),1,1),"yy"),'[3]Notes - Issuer'!$2:$2,0)) -> 0.0142156 | O24: =INDEX('[3]Notes - Issuer'!$1189:$1189,MATCH(TEXT(DATE(2000,MONTH('Page 1'!E17),1),"mmm")&+TEXT(DATE(YEAR('Page 1'!E17),1,1),"yy"),'[3]Notes - Issuer'!$2:$2,0)) -> 16/01/2018 - 16/04/2018 | P24: =INDEX('[3]Notes - Issuer'!$1190:$1190,MATCH(TEXT(DATE(2000,MONTH('Page 1'!E17),1),"mmm")&+TEXT(DATE(YEAR('Page 1'!E17),1,1),"yy"),'[3]Notes - Issuer'!$2:$2,0)) -> 2018-04-16 | Q24: =INDEX('[3]Notes - Issuer'!$1188:$1188,MATCH(TEXT(DATE(2000,MONTH('Page 1'!E17),1),"mmm")&+TEXT(DATE(YEAR('Page 1'!E17),1,1),"yy"),'[3]Notes - Issuer'!$2:$2,0)) -> 1358480.35 | R24: N/A | S24: 2054-10-01 | T24: P-Through | U24: Retained
B26: *All Notes are listed on the London Stock Exchange.
B29: Closing Date | C29: 2017-10-04 | J29: Series 2017-1 Notes
B31: 2017-1 | C31: ISIN (Reg S) | D31: ISIN (144a) | E31: Current Ratings S&P/Moody's/Fitch | F31: Original Ratings S&P/Moody's/Fitch | G31: Currency | H31: Applicable Exchange Rate | I31: Original Balance | J31: Repaid | K31: Outstanding | L31: Reference rate | M31: Margin p.a.% | N31: Current interest rate p.a.% | O31: Accrual Period | P31: Next coupon date | Q31: Interest next coupon | R31: Step up Date | S31: Legal Maturity | T31: Bond Type | U31: Placement
B33: A1 | C33: XS1693006071 | D33: n/a | E33: AAA/Aaa/AAA | F33: AAA/Aaa/AAA | G33: GBP | H33: - | I33: =INDEX('[3]Notes - Issuer'!$1203:$1203,MATCH(TEXT(DATE(2000,MONTH('Page 1'!E17),1),"mmm")&+TEXT(DATE(YEAR('Page 1'!E17),1,1),"yy"),'[3]Notes - Issuer'!$2:$2,0)) -> 250000000 | J33: =K33-I33 -> 0 | K33: =INDEX('[3]Notes - Issuer'!$1227:$1227,MATCH(TEXT(DATE(2000,MONTH('Page 1'!E17),1),"mmm")&+TEXT(DATE(YEAR('Page 1'!E17),1,1),"yy"),'[3]Notes - Issuer'!$2:$2,0)) -> 250000000 | L33: 3M GBP LIBOR | M33: 0.0028 | N33: =INDEX('[3]Notes - Issuer'!$1239:$1239,MATCH(+TEXT(DATE(2000,MONTH('Page 1'!$E$17),1),"mmm")&+TEXT(DATE(YEAR('Page 1'!$E$17),1,1),"yy"),'[3]Notes - Issuer'!$2:$2,0)) -> 0.0080156 | O33: =INDEX('[3]Notes - Issuer'!$1244:$1244,MATCH(+TEXT(DATE(2000,MONTH('Page 1'!E17),1),"mmm")&+TEXT(DATE(YEAR('Page 1'!E17),1,1),"yy"),'[3]Notes - Issuer'!$2:$2,0)) -> 16/01/2018 - 16/04/2018 | P33: =INDEX('[3]Notes - Issuer'!$1245:$1245,MATCH(+TEXT(DATE(2000,MONTH('Page 1'!E17),1),"mmm")&+TEXT(DATE(YEAR('Page 1'!E17),1,1),"yy"),'[3]Notes - Issuer'!$2:$2,0)) -> 2018-04-16 | Q33: =INDEX('[3]Notes - Issuer'!$1243:$1243,MATCH(+TEXT(DATE(2000,MONTH('Page 1'!E17),1),"mmm")&+TEXT(DATE(YEAR('Page 1'!E17),1,1),"yy"),'[3]Notes - Issuer'!$2:$2,0)) -> 494112.33 | R33: 2020-07-15 | S33: 2054-10-01 | T33: Sched AM | U33: Public
B34: A2 | C34: XS1693009091 | D34: n/a | E34: AAA/Aaa/AAA | F34: AAA/Aaa/AAA | G34: GBP | H34: - | I34: =INDEX('[3]Notes - Issuer'!$1258:$1258,MATCH(TEXT(DATE(2000,MONTH('Page 1'!E17),1),"mmm")&+TEXT(DATE(YEAR('Page 1'!E17),1,1),"yy"),'[3]Notes - Issuer'!$2:$2,0)) -> 250000000 | J34: =K34-I34 -> 0 | K34: =INDEX('[3]Notes - Issuer'!$1282:$1282,MATCH(TEXT(DATE(2000,MONTH('Page 1'!E17),1),"mmm")&+TEXT(DATE(YEAR('Page 1'!E17),1,1),"yy"),'[3]Notes - Issuer'!$2:$2,0)) -> 250000000 | L34: 3M GBP LIBOR | M34: 0.0042 | N34: =INDEX('[3]Notes - Issuer'!$1294:$1294,MATCH(TEXT(DATE(2000,MONTH('Page 1'!E17),1),"mmm")&+TEXT(DATE(YEAR('Page 1'!E17),1,1),"yy"),'[3]Notes - Issuer'!$2:$2,0)) -> 0.0094156 | O34: =INDEX('[3]Notes - Issuer'!$1299:$1299,MATCH(TEXT(DATE(2000,MONTH('Page 1'!E17),1),"mmm")&+TEXT(DATE(YEAR('Page 1'!E17),1,1),"yy"),'[3]Notes - Issuer'!$2:$2,0)) -> 16/01/2018 - 16/04/2018 | P34: =INDEX('[3]Notes - Issuer'!$1300:$1300,MATCH(TEXT(DATE(2000,MONTH('Page 1'!E17),1),"mmm")&+TEXT(DATE(YEAR('Page 1'!E17),1,1),"yy"),'[3]Notes - Issuer'!$2:$2,0)) -> 2018-04-16 | Q34: =INDEX('[3]Notes - Issuer'!$1298:$1298,MATCH(TEXT(DATE(2000,MONTH('Page 1'!E17),1),"mmm")&+TEXT(DATE(YEAR('Page 1'!E17),1,1),"yy"),'[3]Notes - Issuer'!$2:$2,0)) -> 580413.7 | R34: 2023-07-15 | S34: 2054-10-01 | T34: Sched AM | U34: Public

Sheet Page 7
B2: Combined Credit Enhancement | C2: Total | D2: Total | E2: Current note | F2: Subordination | G2: % Required
C3: £ | D3: % | E3: subordination | F3: +Reserve Fund
B5: Class A Notes | C5: =INDEX('[3]Interco - Funding'!$1:$1048576,MATCH((LEFT(B5,7)&" (IR)"),'[3]Interco - Funding'!$C:$C,0),MATCH(EOMONTH('Page 1'!$E$15,-1)+1,'[3]Interco - Funding'!$17:$17,0)) -> 1314683544 | D5: =C5/C8 -> 0.7723241731 | E5: =SUM(C6:C7)/C8 -> 0.2276758269 | F5: =(C6+C7+C11)/$C$8 -> 0.2864218404 | G5: 0.231
B6: Class B Notes | C6: =INDEX('[3]Interco - Funding'!$1:$1048576,MATCH((LEFT(B6,7)&" (IR)"),'[3]Interco - Funding'!$C:$C,0),MATCH(EOMONTH('Page 1'!$E$15,-1)+1,'[3]Interco - Funding'!$17:$17,0)) -> 0 | D6: =C6/C8 -> 0 | E6: =C7/C8 -> 0.2276758269 | F6: =(C7+C11)/$C$8 -> 0.2864218404 | G6: 0.057
B7: Class Z Notes | C7: =INDEX('[3]Interco - Funding'!$1:$1048576,MATCH((LEFT(B7,7)&" (IR)"),'[3]Interco - Funding'!$C:$C,0),MATCH(EOMONTH('Page 1'!$E$15,-1)+1,'[3]Interco - Funding'!$17:$17,0)) -> 387559620 | D7: =C7/C8 -> 0.2276758269 | E7: 0 | F7: =(C11)/$C$8 -> 0.05874601355
C8: =SUM(C5:C7) -> 1702243164 | D8: 1
B11: Funding Reserve Fund Required Amount | C11: =+INDEX('[3]Interco - Funding'!$30:$30,MATCH('Page 1'!E15,'[3]Interco - Funding'!$10:$10,0)) -> 100000000 | D11: =C11/C8 -> 0.05874601355
B15: Interest shortfall in period | C15: 0
B16: Cumulative interest shortfall | C16: 0
B17: Principal shortfall in period | C17: 0
B18: Cumulative principal shortfall | C18: 0
B19: Cumulative net loss | C19: 0
B20: Excess principal paid in current period | C20: 0
B23: Funding Reserve Fund
B25: Balance brought forward | C25: =+INDEX('[3]Interco - Funding'!$30:$30,MATCH('Page 1'!E18,'[3]Interco - Funding'!$14:$14,0)) -> 100000000
B26: Drawings | C26: =+C25-C28 -> 0
B27: Top up | C27: 0
B28: Balance carried forward | C28: =+C11 -> 100000000
B31: Quarterly Excess Spread* | C31: Excluding Z notes | D31: Including Z notes
C32: interest paymemt | D32: interest paymemt
B33: Quarterly Excess Spread annualised | C33: =INDEX('[3]Waterfall - Funding'!$169:$169,MATCH(+TEXT(DATE(2000,MONTH('Page 1'!E15),1),"mmm")&+TEXT(DATE(YEAR('Page 1'!E15),1,1),"yy"),'[3]Waterfall - Funding'!$2:$2,0)) -> 0.02277775916 | D33: =INDEX('[3]Waterfall - Funding'!$168:$168,MATCH(+TEXT(DATE(2000,MONTH('Page 1'!E15),1),"mmm")&+TEXT(DATE(YEAR('Page 1'!E15),1,1),"yy"),'[3]Waterfall - Funding'!$2:$2,0)) -> 0.03203924399
B34: Quarterly Excess Spread rolling 12 month average | C34: =INDEX('[3]Waterfall - Funding'!$171:$171,MATCH(+TEXT(DATE(2000,MONTH('Page 1'!E15),1),"mmm")&+TEXT(DATE(YEAR('Page 1'!E15),1,1),"yy"),'[3]Waterfall - Funding'!$2:$2,0)) -> 0.06703468612 | D34: =INDEX('[3]Waterfall - Funding'!$170:$170,MATCH(+TEXT(DATE(2000,MONTH('Page 1'!E15),1),"mmm")&+TEXT(DATE(YEAR('Page 1'!E15),1,1),"yy"),'[3]Waterfall - Funding'!$2:$2,0)) -> 0.08081498293
B35: *Quarterly Excess Spread is calculated at each quarterly Interest Payment Date
B38: ="Monthly Excess Spread* as at"&" "&TEXT('Page 1'!E15,"mmmm yyyy") -> Monthly Excess Spread* as at January 2018 | C38: Excluding Z notes | D38: Including Z notes
B40: Monthly Excess Spread annualised | C40: =INDEX('[3]Waterfall - Funding'!$167:$167,MATCH(+TEXT(DATE(2000,MONTH('Page 1'!E15),1),"mmm")&+TEXT(DATE(YEAR('Page 1'!E15),1,1),"yy"),'[3]Waterfall - Funding'!$2:$2,0)) -> 0.005762997177 | D40: =INDEX('[3]Waterfall - Funding'!$166:$166,MATCH(+TEXT(DATE(2000,MONTH('Page 1'!E15),1),"mmm")&+TEXT(DATE(YEAR('Page 1'!E15),1,1),"yy"),'[3]Waterfall - Funding'!$2:$2,0)) -> 0.008984383204
B41: *Monthly Excess Spread is calculated using monthly Funding Revenue received and one third of Fundings quarterly liabilities
B44: Funding Principal Ledger-AAA | C44: =IF(MONTH('Page 1'!E17)=MONTH('Page 1'!E18),INDEX('[3]Waterfall - Funding'!$134:$134,MATCH('Page 1'!E18,'[3]Waterfall - Funding'!$6:$6,0)),INDEX('[3]Waterfall - Funding'!$134:$134,MATCH(+TEXT(DATE(2000,MONTH('Page 1'!E15),1),"mmm")&+TEXT(DATE(YEAR('Page 1'!E15),1,1),"yy"),'[3]Waterfall - Funding'!$2:$2,0))) -> 0
B45: Funding Principal Ledger-AA | C45: 0
B46: Funding Principal Ledger-A | C46: 0
B47: Funding Principal Ledger-BBB | C47: 0
B48: Funding Principal Ledger | C48: =SUM(C44:C47) -> 0 | M48: .
B50: ="Accounts as at "&" "&TEXT(EOMONTH('Page 1'!E15,0),"dd mmmm yyyy") -> Accounts as at 31 January 2018 | C50: Counterparty | E50: Rate | F50: Amount
B52: Mortgages Trustee GIC | C52: Santander UK | E52: Libor | F52: =INDEX('[3]Waterfall - Trustees'!$258:$258,MATCH(EOMONTH('Page 1'!E15,-1),'[3]Waterfall - Trustees'!$5:$5,0)) -> 208698433.5
B53: Funding GIC | C53: Santander UK | E53: Libor | F53: =+INDEX('[3]Waterfall - Funding'!$174:$174,MATCH(EOMONTH('Page 1'!E15,-1)+1,'[3]Waterfall - Funding'!$15:$15,0)) -> 100496449.5
B54: Funding Transaction Account | C54: Santander UK | E54: Libor - 0.25% | F54: =INDEX('[3]Waterfall - Funding'!$175:$175,MATCH(+TEXT(DATE(2000,MONTH('Page 1'!E15),1),"mmm")&+TEXT(DATE(YEAR('Page 1'!E15),1,1),"yy"),'[3]Waterfall - Funding'!$2:$2,0)) -> 2.73
B55: Panel Banks | C55: Bank of New York Mellon | E55: - | F55: 0

Sheet Page 8
A1: WATERFALLS
B3: MORTGAGES TRUSTEE REVENUE WATERFALL | E3: FUNDING REVENUE WATERFALL | H3: ISSUER REVENUE WATERFALL
B4: ="*for distribution period "&TEXT(EOMONTH('Page 1'!E15,-2)+1,"dd mmmm yyyy")&"- "&TEXT(EOMONTH('Page 1'!E15,-1)+1,"dd mmmm yyyy") -> *for distribution period 01 December 2017- 01 January 2018
A5: (a) | B5: Mortgages Trustee fees | C5: =INDEX('[3]Waterfall - Trustees'!$1:$1048576,MATCH(B5,'[3]Waterfall - Trustees'!$C:$C,0),MATCH(EOMONTH('Page 1'!E15,-1),'[3]Waterfall - Trustees'!$5:$5,0)) -> 0 | D5: (a) | E5: Funding Security Trustee fees | F5: 0 | G5: (a) | H5: Issuing Entity Security Trustee fees | I5: =INDEX('[3]Waterfall - Issuer'!$1:$1048576,MATCH(G5,'[3]Waterfall - Issuer'!$B:$B,0),MATCH(+TEXT(DATE(2000,MONTH('Page 1'!E15),1),"mmm")&+TEXT(DATE(YEAR('Page 1'!E15),1,1),"yy"),'[3]Waterfall - Issuer'!$2:$2,0)) -> 14100
B6: Other third party payments | C6: =INDEX('[3]Waterfall - Trustees'!$1:$1048576,MATCH(B6,'[3]Waterfall - Trustees'!$C:$C,0),MATCH(EOMONTH('Page 1'!E15,-1),'[3]Waterfall - Trustees'!$5:$5,0)) -> 0 | E6: Fee under Intercompany Loan | F6: =INDEX('[3]Waterfall - Funding'!$1:$1048576,MATCH(E6,'[3]Waterfall - Funding'!$M:$M,0),MATCH(TEXT(DATE(2000,MONTH('Page 1'!E17),1),"mmm")&+TEXT(DATE(YEAR('Page 1'!E17),1,1),"yy"),'[3]Waterfall - Funding'!$2:$2,0)) -> 143951.025 | H6: Note Trustee fees | I6: 0
E7: Other third party payments | F7: 0 | H7: Agent Bank fees etc. | I7: 0
A9: (b) | B9: Servicer fee | C9: =INDEX('[3]Waterfall - Trustees'!$1:$1048576,MATCH(B9,'[3]Waterfall - Trustees'!$C:$C,0),MATCH(EOMONTH('Page 1'!E15,-1),'[3]Waterfall - Trustees'!$5:$5,0)) -> 162296.06
D10: (b) | E10: Cash Manager fees | F10: =INDEX('[3]Waterfall - Funding'!$1:$1048576,MATCH(E10,'[3]Waterfall - Funding'!$C:$C,0),MATCH(TEXT(DATE(2000,MONTH('Page 1'!E17),1),"mmm")&+TEXT(DATE(YEAR('Page 1'!E17),1,1),"yy"),'[3]Waterfall - Funding'!$2:$2,0)) -> 29375 | G10: (b) | H10: Other third party payments | I10: =INDEX('[3]Waterfall - Issuer'!$1:$1048576,MATCH(G10,'[3]Waterfall - Issuer'!$B:$B,0),MATCH(+TEXT(DATE(2000,MONTH('Page 1'!E15),1),"mmm")&+TEXT(DATE(YEAR('Page 1'!E15),1,1),"yy"),'[3]Waterfall - Issuer'!$2:$2,0)) -> 84726.025
A12: (c) | B12: Funding | C12: =INDEX('[3]Waterfall - Funding'!$23:$23,MATCH(TEXT(DATE(2000,MONTH('Page 1'!E17),1),"mmm")&+TEXT(DATE(YEAR('Page 1'!E17),1,1),"yy"),'[3]Waterfall - Funding'!$2:$2,0)) -> 3744743.42
B13: Seller | C13: ='Page 3'!N8-'Page 8'!C12-'Page 8'!C9-C6 -> 5900638.72 | D13: (c) | E13: Funding Corporate Services fees | G13: (c) | H13: Issuing Entity Cash Manager fees | I13: =INDEX('[3]Waterfall - Issuer'!$1:$1048576,MATCH(G13,'[3]Waterfall - Issuer'!$B:$B,0),MATCH(+TEXT(DATE(2000,MONTH('Page 1'!E15),1),"mmm")&+TEXT(DATE(YEAR('Page 1'!E15),1,1),"yy"),'[3]Waterfall - Issuer'!$2:$2,0)) -> 45125
E14: Account Banks fees | F14: =INDEX('[3]Waterfall - Funding'!$1:$1048576,MATCH(E14,'[3]Waterfall - Funding'!$M:$M,0),MATCH(TEXT(DATE(2000,MONTH('Page 1'!E17),1),"mmm")&+TEXT(DATE(YEAR('Page 1'!E17),1,1),"yy"),'[3]Waterfall - Funding'!$2:$2,0)) -> 15750 | H14: Issuing Entity Corporate Services Provider fees | I14: 0
H15: Issuing Entity Account Bank fees | I15: 0
D17: (d) | E17: Payment to Funding 1 Swap Provider | F17: =INDEX('[3]Waterfall - Funding'!$1:$1048576,MATCH(E17,'[3]Waterfall - Funding'!$M:$M,0),MATCH(TEXT(DATE(2000,MONTH('Page 1'!E17),1),"mmm")&+TEXT(DATE(YEAR('Page 1'!E17),1,1),"yy"),'[3]Waterfall - Funding'!$2:$2,0)) -> 2474237.44
B18: MORTGAGES TRUSTEE PRINCIPAL WATERFALL | G18: (d) | H18: Interest on Class A Notes | I18: =INDEX('[3]Waterfall - Issuer'!$240:$240,MATCH(+TEXT(DATE(2000,MONTH('Page 1'!E15),1),"mmm")&+TEXT(DATE(YEAR('Page 1'!E15),1,1),"yy"),'[3]Waterfall - Issuer'!$2:$2,0)) -> 6140668.186
H19: (including any payments to Issuing Entity Swap Providers) | I19: =INDEX('[3]Waterfall - Issuer'!$241:$241,MATCH(+TEXT(DATE(2000,MONTH('Page 1'!E15),1),"mmm")&+TEXT(DATE(YEAR('Page 1'!E15),1,1),"yy"),'[3]Waterfall - Issuer'!$2:$2,0)) -> 2552952.141
D20: (e) | E20: Interest on AAA Term Advances | F20: =INDEX('[3]Waterfall - Funding'!$1:$1048576,MATCH(D20,'[3]Waterfall - Funding'!$B:$B,0),MATCH(TEXT(DATE(2000,MONTH('Page 1'!E17),1),"mmm")&+TEXT(DATE(YEAR('Page 1'!E17),1,1),"yy"),'[3]Waterfall - Funding'!$2:$2,0)) -> 4438700.087 | G20: (e) | H20: Interest on Class B Notes | I20: =INDEX('[3]Waterfall - Issuer'!$243:$243,MATCH(+TEXT(DATE(2000,MONTH('Page 1'!E15),1),"mmm")&+TEXT(DATE(YEAR('Page 1'!E15),1,1),"yy"),'[3]Waterfall - Issuer'!$2:$2,0)) -> 0
A21: (a) | B21: Funding | C21: =INDEX('[3]Waterfall - Funding'!$131:$131,MATCH(+TEXT(DATE(2000,MONTH('Page 1'!E15),1),"mmm")&+TEXT(DATE(YEAR('Page 1'!E15),1,1),"yy"),'[3]Waterfall - Funding'!$2:$2,0)) -> 0 | D21: (f) | E21: Credit to AAA Principal Deficiency Ledger | F21: 0 | H21: (including any payments to Issuing Entity Swap Providers) | I21: =INDEX('[3]Waterfall - Issuer'!$244:$244,MATCH(+TEXT(DATE(2000,MONTH('Page 1'!E15),1),"mmm")&+TEXT(DATE(YEAR('Page 1'!E15),1,1),"yy"),'[3]Waterfall - Issuer'!$2:$2,0)) -> 0
G22: (f) | H22: Interest on Class M Notes | I22: 0
H23: (including any payments to Issuing Entity Swap Providers) | I23: 0
A24: (b) | B24: Seller | C24: =-INDEX('[3]Waterfall - Trustees'!$64:$64,MATCH(EOMONTH('Page 1'!E15,-1),'[3]Waterfall - Trustees'!$5:$5,0))-'Page 8'!C21 -> 85193797.71 | D24: (g) | E24: Interest on AA Term Advances | F24: =INDEX('[3]Waterfall - Funding'!$1:$1048576,MATCH(D24,'[3]Waterfall - Funding'!$B:$B,0),MATCH(TEXT(DATE(2000,MONTH('Page 1'!E17),1),"mmm")&+TEXT(DATE(YEAR('Page 1'!E17),1,1),"yy"),'[3]Waterfall - Funding'!$2:$2,0)) -> 0 | G24: (g) | H24: Interest on Class C Notes | I24: 0
D25: (h) | E25: Credit to AA Principal Deficiency Ledger | F25: =INDEX('[3]Waterfall - Funding'!$1:$1048576,MATCH(D25,'[3]Waterfall - Funding'!$B:$B,0),MATCH(TEXT(DATE(2000,MONTH('Page 1'!E17),1),"mmm")&+TEXT(DATE(YEAR('Page 1'!E17),1,1),"yy"),'[3]Waterfall - Funding'!$2:$2,0)) -> 0 | H25: (including any payments to Issuing Entity Swap Providers) | I25: 0
D27: (i) | E27: Interest on A Term Advances | F27: =INDEX('[3]Waterfall - Funding'!$1:$1048576,MATCH(D27,'[3]Waterfall - Funding'!$B:$B,0),MATCH(TEXT(DATE(2000,MONTH('Page 1'!E17),1),"mmm")&+TEXT(DATE(YEAR('Page 1'!E17),1,1),"yy"),'[3]Waterfall - Funding'!$2:$2,0)) -> 0 | G27: (h) | H27: Interest on Class Z Notes | I27: =+F45 -> 1249163.055
D28: (j) | E28: Credit to A Principal Deficiency Ledger | F28: =INDEX('[3]Waterfall - Funding'!$1:$1048576,MATCH(D28,'[3]Waterfall - Funding'!$B:$B,0),MATCH(TEXT(DATE(2000,MONTH('Page 1'!E17),1),"mmm")&+TEXT(DATE(YEAR('Page 1'!E17),1,1),"yy"),'[3]Waterfall - Funding'!$2:$2,0)) -> 0
D30: (k) | E30: Interest on BBB Term Advances | F30: =INDEX('[3]Waterfall - Funding'!$1:$1048576,MATCH(D30,'[3]Waterfall - Funding'!$B:$B,0),MATCH(TEXT(DATE(2000,MONTH('Page 1'!E17),1),"mmm")&+TEXT(DATE(YEAR('Page 1'!E17),1,1),"yy"),'[3]Waterfall - Funding'!$2:$2,0)) -> 0 | G30: (i) | H30: Excluded issuer swap payments | I30: 0
D31: (l) | E31: Credit to BBB Principal Deficiency Ledger | F31: =INDEX('[3]Waterfall - Funding'!$1:$1048576,MATCH(D31,'[3]Waterfall - Funding'!$B:$B,0),MATCH(TEXT(DATE(2000,MONTH('Page 1'!E17),1),"mmm")&+TEXT(DATE(YEAR('Page 1'!E17),1,1),"yy"),'[3]Waterfall - Funding'!$2:$2,0)) -> 0
D34: (m) | E34: Swap termination payments | F34: =INDEX('[3]Waterfall - Funding'!$1:$1048576,MATCH(D34,'[3]Waterfall - Funding'!$B:$B,0),MATCH(TEXT(DATE(2000,MONTH('Page 1'!E17),1),"mmm")&+TEXT(DATE(YEAR('Page 1'!E17),1,1),"yy"),'[3]Waterfall - Funding'!$2:$2,0)) -> 0 | G34: (j) | H34: Issuing Entity profit | I34: =INDEX('[3]Waterfall - Issuer'!$256:$256,MATCH(+TEXT(DATE(2000,MONTH('Page 1'!E15),1),"mmm")&+TEXT(DATE(YEAR('Page 1'!E15),1,1),"yy"),'[3]Waterfall - Issuer'!$2:$2,0)) -> 312.5
D37: (n) | E37: Credit to First Reserve Fund | F37: =INDEX('[3]Waterfall - Funding'!$1:$1048576,MATCH(D37,'[3]Waterfall - Funding'!$B:$B,0),MATCH(TEXT(DATE(2000,MONTH('Page 1'!E17),1),"mmm")&+TEXT(DATE(YEAR('Page 1'!E17),1,1),"yy"),'[3]Waterfall - Funding'!$2:$2,0)) -> 0
D38: (o) | E38: Additional credit to First Reserve Fund | F38: =INDEX('[3]Waterfall - Funding'!$1:$1048576,MATCH(D38,'[3]Waterfall - Funding'!$B:$B,0),MATCH(TEXT(DATE(2000,MONTH('Page 1'!E17),1),"mmm")&+TEXT(DATE(YEAR('Page 1'!E17),1,1),"yy"),'[3]Waterfall - Funding'!$2:$2,0)) -> 0 | H38: ISSUER PRINCIPAL WATERFALL
D39: (p) | E39: Credit to Liquidity Reserve Fund | F39: =INDEX('[3]Waterfall - Funding'!$1:$1048576,MATCH(D39,'[3]Waterfall - Funding'!$B:$B,0),MATCH(TEXT(DATE(2000,MONTH('Page 1'!E17),1),"mmm")&+TEXT(DATE(YEAR('Page 1'!E17),1,1),"yy"),'[3]Waterfall - Funding'!$2:$2,0)) -> 0
G40: (a) | H40: Repayment of Class A Notes | I40: =INDEX('[3]Waterfall - Issuer'!$375:$375,MATCH(+TEXT(DATE(2000,MONTH('Page 1'!E15),1),"mmm")&+TEXT(DATE(YEAR('Page 1'!E15),1,1),"yy"),'[3]Waterfall - Issuer'!$2:$2,0)) -> 0
H41: (including principal payments to class A swap providers) | I41: =INDEX('[3]Waterfall - Issuer'!$376:$376,MATCH(+TEXT(DATE(2000,MONTH('Page 1'!E15),1),"mmm")&+TEXT(DATE(YEAR('Page 1'!E15),1,1),"yy"),'[3]Waterfall - Issuer'!$2:$2,0)) -> 0
D42: (q) | E42: Credit to NR Principal Deficiency Ledger | F42: 0 | G42: (b) | H42: Repayment of Class B Notes | I42: =INDEX('[3]Waterfall - Issuer'!$378:$378,MATCH(+TEXT(DATE(2000,MONTH('Page 1'!E15),1),"mmm")&+TEXT(DATE(YEAR('Page 1'!E15),1,1),"yy"),'[3]Waterfall - Issuer'!$2:$2,0)) -> 0
H43: (including principal payments to class A swap providers) | I43: =INDEX('[3]Waterfall - Issuer'!$379:$379,MATCH(+TEXT(DATE(2000,MONTH('Page 1'!E15),1),"mmm")&+TEXT(DATE(YEAR('Page 1'!E15),1,1),"yy"),'[3]Waterfall - Issuer'!$2:$2,0)) -> 0
G44: (c) | H44: Repayment of Class M Notes | I44: 0
D45: (r) | E45: Interest on NR Term Advances | F45: =INDEX('[3]Waterfall - Funding'!$1:$1048576,MATCH(D45,'[3]Waterfall - Funding'!$B:$B,0),MATCH(TEXT(DATE(2000,MONTH('Page 1'!E17),1),"mmm")&+TEXT(DATE(YEAR('Page 1'!E17),1,1),"yy"),'[3]Waterfall - Funding'!$2:$2,0)) -> 1249163.055 | H45: (including principal payments to class A swap providers) | I45: 0
G46: (d) | H46: Repayment of Class C Notes | I46: 0
H47: (including principal payments to class A swap providers) | I47: 0
D48: (s) | E48: Excluded swap payments (with respect to the Issuer) and other fees under the Intercompany Loan Agreement | F48: =INDEX('[3]Waterfall - Funding'!$1:$1048576,MATCH(D48,'[3]Waterfall - Funding'!$B:$B,0),MATCH(TEXT(DATE(2000,MONTH('Page 1'!E17),1),"mmm")&+TEXT(DATE(YEAR('Page 1'!E17),1,1),"yy"),'[3]Waterfall - Funding'!$2:$2,0)) -> 312.5 | G48: (e) | H48: Repayment of Class Z Notes | I48: 0
D50: (u) | E50: Start up loan payments due | F50: =INDEX('[3]Waterfall - Funding'!$1:$1048576,MATCH(D50,'[3]Waterfall - Funding'!$B:$B,0),MATCH(TEXT(DATE(2000,MONTH('Page 1'!E17),1),"mmm")&+TEXT(DATE(YEAR('Page 1'!E17),1,1),"yy"),'[3]Waterfall - Funding'!$2:$2,0)) -> 1689812.95
D53: (v) | E53: Profit to Funding | F53: =INDEX('[3]Waterfall - Funding'!$1:$1048576,MATCH(D53,'[3]Waterfall - Funding'!$B:$B,0),MATCH(TEXT(DATE(2000,MONTH('Page 1'!E17),1),"mmm")&+TEXT(DATE(YEAR('Page 1'!E17),1,1),"yy"),'[3]Waterfall - Funding'!$2:$2,0)) -> 312.5
D56: (w) | E56: Deferred Consideration | F56: =INDEX('[3]Waterfall - Funding'!$1:$1048576,MATCH(D56,'[3]Waterfall - Funding'!$B:$B,0),MATCH(TEXT(DATE(2000,MONTH('Page 1'!E17),1),"mmm")&+TEXT(DATE(YEAR('Page 1'!E17),1,1),"yy"),'[3]Waterfall - Funding'!$2:$2,0)) -> 1381762.223
E59: FUNDING PRINCIPAL WATERFALL
E60: * To be read in conjunction with rules on pgs. 181- 185 of the base prospectus
D62: (a) | E62: Repayment of AAA Term Advances | F62: =INDEX('[3]Waterfall - Funding'!$149:$149,MATCH(TEXT(DATE(2000,MONTH('Page 1'!E17),1),"mmm")&+TEXT(DATE(YEAR('Page 1'!E17),1,1),"yy"),'[3]Waterfall - Funding'!$2:$2,0)) -> 0
D65: (b) | E65: Credit to Cash Accumulation Ledger | F65: =INDEX('[3]Waterfall - Funding'!$150:$150,MATCH(TEXT(DATE(2000,MONTH('Page 1'!E15),1),"mmm")&+TEXT(DATE(YEAR('Page 1'!E15),1,1),"yy"),'[3]Waterfall - Funding'!$2:$2,0)) -> 0
D68: (c) | E68: Repayment of AA Term Advances | F68: =INDEX('[3]Waterfall - Funding'!$153:$153,MATCH(TEXT(DATE(2000,MONTH('Page 1'!E17),1),"mmm")&+TEXT(DATE(YEAR('Page 1'!E17),1,1),"yy"),'[3]Waterfall - Funding'!$2:$2,0)) -> 0
D69: (d) | E69: Repayment of A Term Advances | F69: 0
D70: (e) | E70: Repayment of BBB Term Advances | F70: 0
D73: (f) | E73: Repayment of NR Term Advances | F73: 0

Sheet Page 9
B1: SWAP PAYMENTS
B4: Note | C4: Swap Counterparty | D4: Currency Notional | E4: Receive Reference Rate | F4: Receive Margin | G4: Receive Rate | H4: Interest Received | I4: Principal Received | J4: £ Notional | K4: Pay reference rate | L4: Pay margin | M4: Pay rate | N4: Interest Paid | O4: Principal Paid
B5: Funding 1 Swap | C5: SAN UK | D5: =+INDEX('[3]Waterfall - Funding'!$178:$178,MATCH('Page 1'!$E$18,'[3]Waterfall - Funding'!$6:$6,0)) -> 1702243164 | E5: 3M GBP LIBOR | F5: 0.0179448182 | G5: =+INDEX('[3]Waterfall - Funding'!$180:$180,MATCH('Page 1'!$E$18,'[3]Waterfall - Funding'!$6:$6,0)) -> 0.02097174989 | H5: =+INDEX('[3]Waterfall - Funding'!$181:$181,MATCH('Page 1'!$E$18,'[3]Waterfall - Funding'!$6:$6,0)) -> 8997496.392 | I5: =+INDEX('[3]Waterfall - Funding'!$182:$182,MATCH('Page 1'!$E$18,'[3]Waterfall - Funding'!$6:$6,0)) -> 0 | J5: =+INDEX('[3]Waterfall - Funding'!$183:$183,MATCH('Page 1'!$E$18,'[3]Waterfall - Funding'!$6:$6,0)) -> 1702243164 | K5: 3M GBP LIBOR | L5: 0 | M5: =+INDEX('[3]Waterfall - Funding'!$186:$186,MATCH('Page 1'!$E$18,'[3]Waterfall - Funding'!$6:$6,0)) -> 0.02673698917 | N5: =+INDEX('[3]Waterfall - Funding'!$187:$187,MATCH('Page 1'!$E$18,'[3]Waterfall - Funding'!$6:$6,0)) -> 11471733.83 | O5: =+INDEX('[3]Waterfall - Funding'!$188:$188,MATCH('Page 1'!$E$18,'[3]Waterfall - Funding'!$6:$6,0)) -> 0
B6: 2011-3 A5 | C6: ANTS | D6: =+INDEX('[3]Notes - Issuer'!$457:$457,MATCH('Page 1'!$E$18,'[3]Notes - Issuer'!$6:$6,0)) -> 500000000 | E6: USD FIXED | F6: 0 | G6: =+'Page 6'!$N$13 -> 0.03615 | H6: =IF(OR(MONTH('Page 1'!E18)=1,MONTH('Page 1'!E18)=7),INDEX('[3]Notes - Issuer'!$474:$474,MATCH(TEXT(DATE(2000,MONTH('Page 1'!$E$17),1),"mmm")&+TEXT(DATE(YEAR('Page 1'!$E$17),1,1),"yy"),'[3]Notes - Issuer'!$2:$2,0)),0) -> 9037500 | I6: =+INDEX('[3]Notes - Issuer'!$462:$462,MATCH('Page 1'!$E$18,'[3]Notes - Issuer'!$6:$6,0)) -> 0 | J6: =+INDEX('[3]Interco - Funding'!$262:$262,MATCH('Page 1'!$E$18,'[3]Interco - Funding'!$6:$6,0))+INDEX('[3]Interco - Funding'!$250:$250,MATCH('Page 1'!$E$18,'[3]Interco - Funding'!$6:$6,0)) -> 316455696.2 | K6: 3M GBP LIBOR | L6: 0.01755 | M6: =+INDEX('[3]Interco - Funding'!$256:$256,MATCH('Page 1'!$E$18,'[3]Interco - Funding'!$6:$6,0)) -> 0.0213375 | N6: =+INDEX('[3]Interco - Funding'!$258:$258,MATCH('Page 1'!$E$18,'[3]Interco - Funding'!$6:$6,0)) -> 1701968.094 | O6: =+INDEX('[3]Interco - Funding'!$250:$250,MATCH('Page 1'!$E$18,'[3]Interco - Funding'!$6:$6,0)) -> 0
B7: 2011-3 A6 | C7: ANTS | D7: =+INDEX('[3]Notes - Issuer'!$512:$512,MATCH('Page 1'!$E$18,'[3]Notes - Issuer'!$6:$6,0)) -> 250000000 | E7: 3M USD LIBOR | F7: 0.0175 | G7: =INDEX('[3]Notes - Issuer'!$525:$525,MATCH(TEXT(DATE(2000,MONTH('Page 1'!E17),1),"mmm")&+TEXT(DATE(YEAR('Page 1'!E17),1,1),"yy"),'[3]Notes - Issuer'!$2:$2,0)-1) -> 0.0310917 | H7: =INDEX('[3]Notes - Issuer'!$529:$529,MATCH(TEXT(DATE(2000,MONTH('Page 1'!E17),1),"mmm")&+TEXT(DATE(YEAR('Page 1'!E17),1,1),"yy"),'[3]Notes - Issuer'!$2:$2,0)-1) -> 1986414.17 | I7: =+INDEX('[3]Notes - Issuer'!$517:$517,MATCH('Page 1'!$E$18,'[3]Notes - Issuer'!$6:$6,0)) -> 0 | J7: =+INDEX('[3]Interco - Funding'!$291:$291,MATCH('Page 1'!$E$18,'[3]Interco - Funding'!$6:$6,0))+INDEX('[3]Interco - Funding'!$279:$279,MATCH('Page 1'!$E$18,'[3]Interco - Funding'!$6:$6,0)) -> 158227848.1 | K7: 3M GBP LIBOR | L7: 0.01755 | M7: =+INDEX('[3]Interco - Funding'!$285:$285,MATCH('Page 1'!$E$18,'[3]Interco - Funding'!$6:$6,0)) -> 0.0213375 | N7: =+INDEX('[3]Interco - Funding'!$287:$287,MATCH('Page 1'!$E$18,'[3]Interco - Funding'!$6:$6,0)) -> 850984.0472 | O7: =+INDEX('[3]Interco - Funding'!$279:$279,MATCH('Page 1'!$E$18,'[3]Interco - Funding'!$6:$6,0)) -> 0
B11: COLLATERAL
B14: Note | C14: Collateral Postings | D14: Counterparty
B16: There was no collateral posted during this period.

Sheet Page 10
B1: TRIGGER EVENTS
B2: Asset
B3: Amount debited to AAA Principal Deficiency Sub Ledger, unless certain criteria are met | C3: None
B5: Non Asset
B6: Insolvency Event occurs in relation to Seller. | C6: None
B7: Seller's role as Servicer terminated & new servicer appointed within 60 days. | C7: None
B8: The then current Seller Share is less than the Minimum Seller Share. | C8: None
B11: An Arrears Trigger Event will occur if:
B13: (i) the Outstanding Principal Balance of the Loans in arrears for more than 90 days divided by the Outstanding Principal Balance of all of the Loans in the Mortgages Trust (expressed as a percentage) exceeds 2 per cent.; or | C13: None
B14: (ii) the Issuer does not exercise its option to redeem the Issuing Entity Notes on the relevant step-up date pursuant to the Terms and Conditions of the Issuing Entity Notes (but only where such right of redemption arises on or after a particular specified date and not as a result of the occurrence of any event specified in the Terms and Conditions of the relevant Issuing Entity Notes) | C14: None
B16: Full details of all Trigger Events can be found within the Holmes Master Issuer plc. base prospectus
B18: Definitions
A19: 1 | B19: Current value of mortgages
B20: Includes all amounts of principal, interest and fees as yet unpaid by the borrower. Current Value of Mortgage Loans in Pool in 'Mortgage Loan Profile' and 'Trust Asset' is different due to the 'Mortgage Loan Profile' value including the accrued interest over the reporting period.
A21: 2 | B21: Arrears
B22: This arrears multiplier is calculated as the arrears amount ( which is the difference between the expected monthly repayments and the amount that has actually been paid, i.e. a total of under and/or over payments ) divided by the monthly amount repayable. It is recalculated every time the arrears amount changes, i.e. on the date when a payment is due.
A24: 3 | B24: Defaults
B25: For the purpose of the Bank of England Market Notice dated 30 November 2010 "defaults" is defined as properties been taken into possession.
A26: 4 | B26: 1 month CPR
B27: On any trust calculation date, the total principal receipts received during the immediately preceding trust calculation period divided by the aggregate current balance of the loans comprised in the trust property calculated on the previous trust calculation date in respect of the previous trust calculation period.
A28: 5 | B28: 1 month annualised CPR
B29: Calculated as 1 – ((1 – R) ^ 12) where R is (i) total principal receipts received scheduled and unscheduled during the relevant period, divided by (ii) the aggregate outstanding principal balance of the loans in the expected portfolio as at the start of that period.
A30: 6 | B30: 3 month average CPR
B31: The total principal receipts received during the immediately preceding trust calculation period for the last 3 months divided by the average aggregate current balance of the last 3 months of the loans comprised in the trust property.
A32: 7 | B32: 3 month annualised CPR
B33: Calculated as 1 – ((1 – R) ^ 4) where R is (i) total principal receipts received scheduled and unscheduled during the relevant period, divided by (ii) the average aggregate outstanding principal balance over the last 3 months of the loans in the expected portfolio as at the start of that period.
A34: 8 | B34: 12 month average CPR
B35: The total principal receipts received during the immediately preceding trust calculation period for the last 12 months divided by the average aggregate current balance of the last 12 months of the loans comprised in the trust property.
A36: 9
B37: Savings balance
A38: 10 | B38: X
B39: Current balance of Loans in the trust property multiplied by 4.4%
A40: 11 | B40: Y
B41: Flexible drawings set-off risk
A42: 12 | B42: Z
B43: Breach of Mortgage Sale Agreement
A44: 13 | B44: AA
B45: Reward loans cashbacks
A46: 14 | B46: Excess Spread calculation
B47: After a review of the calculation and reporting, Excess Spread has been updated to include 4 reporting components: 1. Quarterly including Z Notes 2. Quarterly excluding Z Notes 3. Monthly including Z Notes 4. Monthly excluding Z Notes In all cases Excess Spread is calculated by dividing excess cash available (pre and post Z Note payment) divided by a. Quarterly = the weighted average Funding Share for the relevant period and b. Monthly = the current Funding Share for the relevant period
A49: Notes | B49: Risk retention
B50: The seller confirms that if it sells one or more new loans and their related security to the mortgages trustee on or after 1 January 2015, the seller, in its capacity as originator, (i) on or immediately following the relevant sale date, will retain, on an on-going basis, a material net economic interest of not less than 5 per cent. in the nominal value of the securitised exposures in accordance with the text of Article 405 of Regulation (EU) No 575/2013 and Article 51 of Regulation (EU) No 231/2013, and (ii) will disclose via an RNS announcement (or in such other manner as the seller may determine) such retained interest and the manner in which it is held. Any change to the manner in which such interest is held will be notified to noteholders in accordance with the conditions.
B52: All capitalised terms used in this investor report have the meaning or descriptions assigned to them in the Holmes Master Issuer plc. base prospectus.

Sheet Sheet1 (hidden)
B3: MARTA GONZALEZ DEPRIT
B4: TARGOL RASHTCHI
B5: ALVARO RUIZ DE ALDA
B6: JAMIE WILSON ADAMS
B7: MARTIN MCKINNEY
